{"text_format":"1","workbook":"xlsx","n_sheets":15,"sheets":["Ohjeistus","Ohjeistus ja tarkistuslista","1_Velvoiteluettelo","2B_Työkustannus","3_Muut kustannukset","4_Poikkeukset","5_Yhteenveto","Apu2_Aika per tehtävä","Apu3_Laite tms kustannuksista","Apu4_Yksinkert. esim. laskelma","Apu5_Tietolähteitä","Annualisoitu NPV","Listat (älä muuta)","Taustatietoa ATI ja EKI","Taustatietoa palkat am lk"],"not_rendered":{"charts":3,"images":8,"macros":1,"external_links":2,"defined_names":19,"comments":8,"pivot_tables":0},"unopened":[],"bounds":{"document_bytes":16777216,"sheet_cells":100000,"rows_first":2000,"rows_last":500,"rows_between":2000,"halvings":0,"cell_chars":16384,"cell_head_chars":4096},"cells_cut":0,"cells_raw":0,"read":"whole","date_system":"1900"}

{"sheet":"Ohjeistus","index":0,"n_rows":99,"n_cols":3,"rows_kept":99,"cut":false,"hidden":false,"merged":[[5,5,7,5],[12,5,14,5],[33,2,34,2],[17,1,18,2],[5,2,12,2],[13,2,15,2]]}
[]
[null,"Yksi yhdestä -yritysvaikutuslaskuri, versio 1.11 (19.12.2017)"]
[]
[null,"Yritysvaikutusten arviointi ja Yksi yhdestä -periaatteen soveltaminen - Miksi ja mitä?"]
[]
[null,null,"Tarkoituksenmukainen sääntely on välttämätöntä toimivan yhteiskunnan ja kansantalouden turvaamiseksi. Sääntelystä yrityksille aiheutuvat kustannukset voivat kuitenkin heikentää kilpailukykyä ja työllisyyttä.* Siten on tärkeää, että sääntelyä sujuvoitetaan tunnistamalla tarpeettoman raskaita menettelyitä ja korvataan niitä kevyemmillä. \n\n\nHallitus linjasi strategiaistunnossaan 22.8.2016 osana ”Sujuvoitetaan säädöksiä” -kärkihankettaan, että TEM:ssä ja MMM:ssä käynnistetään ns. One-in, One-out, eli Yksi yhdestä -periaatteen soveltamisen kokeilu vuoden 2017 ajaksi. Yksi yhdestä -periaatteen soveltaminen tarkoittaa sitä, että yrityksiin kohdistuvat, kansallisista tarpeista aiheutuvat, välittömät sääntelykustannusten lisäykset korvataan vastaavan suuruisella sääntelykustannusten vähentämisellä toisessa yhteydessä. Tavoitteena on, etteivät yritysten sääntelystä aiheutuvat kustannukset ainakaan kasva. (Ks. TEM:n tiedote ja kokeiluhankkeen loppuraportti 19.12.2017.)\n\nLaskemalla euromääräiset arviot sääntelytaakan lisäyksestä tai vähenemisestä* on ainoa keino nähdä sääntelykustannusten suuruus ja kehityssuunta. \n"]
[]
[]
[]
[]
[]
[]
[]
[null,null,"Yksi yhdestä -periaatteen soveltamiseksi ja euromääräisen sääntelytaakan laskemiseksi TEM:ssä on laadittu tämä laskentapohja ja ohjeistus lainvalmistelijoille sekä vaikutusarviointeja tekeville. Laskurin on tarkoitus helpottaa lainvalmistelijoita vaikutusarvioinnin tekemisessä sekä edesauttaa arviointien yhdenmukaisuutta. Tätä laskuria voi siis käyttää ylipäätään yritysvaikutusarviointien tekemiseen siten kuin OM:n ohjeessa (2007:6) ohjeistetaan riippumatta sovelletaanko Yksi yhdestä -periaatetta. "]
[]
[]
[]
[null,"Laskentapohjan käyttö: Yksityiskohtaisemmat ohjeet tämän laskentapohjan käyttöön ovat seuraavalla välilehdellä. Ohjeita on lisäksi välilehdillä sellaisissa soluissa, joissa on punainen kulma. Vie osoitin hiirellä punakulmasolun päälle, niin näet ohjeen. Kokeile esimerkkiä tässä solussa."]
[]
[null,null,"Toimi siis seuraavasti:"]
[null,"1.","Lue ohjeet ja tee tarvittavat merkinnät tarkistuslistaan välilehdellä \"Ohjeistus ja tarkistuslista\""]
[null,"2.","Täytä ohjeistuksen mukaisesti tarvittavat tiedot välilehdelle \"1_Velvoiteluettelo\""]
[null,"3.","Täytä ohjeistuksen mukaisesti tarvittavat tiedot välilehdelle \"2B_Työkustannus\""]
[null,"4.","Täytä ohjeistuksen mukaisesti tarvittavat tiedot välilehdelle \"3_Muut kustannukset\""]
[null,"5.","Katso yhteenveto välilehdeltä \"5_Yhteenveto\""]
[null,"6.","Täytä tarvittaessa tietoja välilehdelle \"4_Poikkeukset\" (vain tarvittaessa)"]
[]
[null,null,"Tietoja syötetään vain keltaisille välilehdille, keltaisiin soluihin."]
[null,null,"Käytä tarvittaessa apuna välilehtiä \"Apu2_ … Apu5_ \""]
[null,null,"Älä tee mitään punaisille välilehdille \"Annualisoitu NPV\", \"Listat (älä muuta)\" ym. "]
[]
[null,null,"Katso ohjeeksi myös TEM:n Yksi yhdestä -kokeiluhankkeen tiedote ja loppuraportti (19.12.2017) "]
[null,null,"sekä OM:n ohjeet säädösehdotusten vaikutusten arviointiin (OM:n ohje 2007:6)"]
[null,null,"Seuraa alla olevaa kaaviota sekä seuraavalla välilehdellä olevia ohjeita ja syötä tarvittavat tiedot/arviot tämän laskentapohjan välilehdille 1, 2 ja 3 (sekä tarvittaessa 4)"]
[]
[]
[]
[]
[]
[]
[]
[]
[]
[]
[]
[]
[]
[]
[]
[]
[]
[]
[]
[]
[]
[]
[]
[]
[]
[]
[]
[]
[]
[]
[]
[]
[]
[]
[]
[]
[]
[]
[]
[]
[]
[]
[]
[]
[]
[]
[]
[]
[]
[null,null,"klikkaa kuvaa tai: http://lainvalmistelu.finlex.fi/"]
[]
[]
[]
[null,"*Lähteitä ja ohjeita"]
[null,null,"Honkatukia J ja Rauhanen T, 2011, Yritysten hallinnollisen taakan vähentämisen kokonaistaloudelliset vaikutukset. VATT."]
[null,null,"Kox H, 2005, Intra-EU differences in regulation-caused administrative burden for companies. CPB Netherlands Bureau for Economic Policy Analysis."]
[null,null,"Tang P and Verweij G, 2004, Reducing the administrative burden in the European Union. CPB Netherlands Bureau for Economic Policy Analysis."]
[null,null,"OM:n ohjeet säädösehdotusten vaikutusten arviointiin (OM:n ohje 2007:6)"]
[null,null,"SCM Network, 2005, International Standard Cost Model Manual, SCM Network. Saatavilla OECD:n www-sivustolta http://www.oecd.org/gov/regulatory-policy/34227698.pdf"]
[null,null,"Lainsäädännön arviointineuvoston lausunnot, http://vnk.fi/arviointineuvosto "]
[null,null,"Hyytinen A. ja Moisio M., 2017, Lainsäädännön arviointineuvosto – lainvalmistelun vaikutusarviointia, Kansantaloudellinen aikakauskirja, 113. vsk, 2/2017, sivu 211. "]
[null,null,"Valtiontalouden tarkastusvirasto VTV, 2017, EU-lainsäädännön täytäntöönpano, tarkastuskertomus 12/2017. https://www.vtv.fi/files/5808/12_2017_EU-lainsaadannon_taytantoonpano.pdf"]
[]
[null,"Kehittäjät: Henrikki Oravainen ja Erno Mähönen (2017)"]
[null,"Työ- ja elinkeinoministeriö"]

{"sheet":"Ohjeistus ja tarkistuslista","index":1,"n_rows":45,"n_cols":7,"rows_kept":45,"cut":false,"hidden":false,"merged":[[8,6,8,12],[3,6,3,12],[4,6,4,12],[5,6,5,12],[6,6,6,12],[7,6,7,12],[17,6,17,12],[18,6,18,12],[22,6,22,12],[19,6,19,12],[9,6,9,12],[10,6,10,12],[11,6,11,12],[12,6,12,12],[13,6,13,12],[14,6,14,12],[15,6,15,12],[16,6,16,12],[39,6,39,12],[30,2,30,4],[30,6,30,12],[32,6,32,12],[31,6,31,12],[37,2,38,4],[37,5,38,5],[37,6,38,12],[33,2,34,4],[31,2,31,4],[33,5,35,5],[33,6,35,12],[36,6,36,12],[29,2,29,4],[29,6,29,12],[28,2,28,4],[20,3,21,4],[20,6,20,12],[21,6,21,12],[23,6,23,12],[24,6,24,12],[25,6,25,12],[26,6,26,12],[27,6,27,12],[28,6,28,12]]}
[null,"Ohje: Sääntelyn yrityksille aiheuttamien kustannuslisäysten ja -säästöjen arviointi sekä Yksi yhdestä -periaatteen soveltaminen"]
[]
[null,"Yleisiä ohjeita",null,null,null,"Ok?","Lähde / lisäohje / tämän taulukon välilehtien käyttö"]
[null,"1.","Yksi yhdestä -periaatetta sovelletaan kansallista alkuperää olevaan ja EU:n minimisääntelyn ylittävään lainsäädäntöön.",null,null,null,"Ks. TEM:n tiedote ja loppuraportti (19.12.2017)"]
[null,"2.","Yritysvaikutukset on arvioitava normaaliin tapaan kaikissa esityksissä, myös niissä, jotka ovat EU:n minimisääntelyä. ",null,null,null,"Ks. OM:n ohje s. 18-"]
[null,"3.","Kiinnitä huomiota yritysvaikutusten arviointiin mahdollisimman varhaisessa vaiheessa lain valmisteluprosessia. ",null,null,null,"Ks. Finlexin ohjeet lainvalmistelun prosessista"]
[null,"4.","Täytä tietoja vain keltaiseksi maalattuihin soluihin.",null,null,null,"Esimerkki keltaisesta täyttösolusta"]
[null,"5.","Tietoja tarvitsee syöttää vain välilehdille 1, 2 ja 3 (sekä tarvittaessa välilehdelle 4)",null,null,null,"Ks. Välilehdet 1, 2 ja 3 sekä tarvittaessa 4"]
[null,"Ks. välilehti 1_Velvoiteluettelo ja hae vastauksia seuraaviin kysymyksiin:"]
[null,"6.","Onko lainsäädännöllä yritysvaikutuksia? Jos on, mitä tietoa vaikutusten tekemiseksi vaaditaan ja mistä saada tietoa?",null,null,null,"Ks. välilehti Apu5_Tietolähteitä"]
[null,"7.","Tunnista ja yksilöi HE:sta yrityksille lisäkustannuksia tai kustannussäästöjä aiheuttavat yksittäiset pykälät/menettelyt.",null,null,null,"Ks. välilehti 1"]
[null,"8.","Tunnista, mitkä edellisistä ovat puhtaasti kansallista alkuperää ja mitkä EU-pohjaista.",null,null,null,"Ks. välilehti 1, sekä VTV:n tarkastuskeromus 12/2017"]
[null,"9.","Mitkä ovat kansallisen lainsäädännön yrityksille aiheuttamat kustannuslisäykset tai kustannussäästöt?",null,null,null,"Ks. välilehdet \"1_\" - \"5_\"."]
[null,"10.","Jos kyse on EU-direktiivin implementoinnista, arvioi vaihtoehtoja, joilla direktiivi voitaisiin implementoida."]
[null,null,"10.1","Aseta  vaihtoehdot järjestykseen yrityksille vähiten ja eniten kustannuksia aiheuttavan vaihtoehdon mukaan"]
[null,null,"10.2","Mikä vaihtoehdoista valitaan"]
[null,null,"10.3","Valitaanko implementointiin yrityksille vähiten kustannuksia aiheuttava vaihtoehto?"]
[null,null,"10.4","Perustele, miksi valitaan juuri kyseinen vaihtoehto."]
[null,null,"10.5","Jos valitaan vähiten kustannuksia aiheuttava vaihtoehto, kyse on niin sanotusta EU-minimisääntelystä"]
[null,null,"10.6","Mitkä ovat EU-minimisääntelyn yrityksille aiheuttamat kustannuslisäykset?",null,null,"Ks. välilehdet \"1_\" - \"5_\"."]
[null,null,"10.7","Mitkä ovat kustannukset, jotka aiheutuvat EU-minimisääntelyn ylittävästä osasta\n(ns. kansallinen lisä, gold plating)?",null,null,"Ks. välilehdet \"1_\" - \"5_\"."]
[]
[null,"11.","Nimeä velvoitteet ja täytä niiden voimaantulovuosi ja luonne välilehdelle 1_Velvoiteluettelo",null,null,null,"Ks. välilehti 1"]
[null,"Laske edellä olevista velvoitteista aiheutuvat kustannussäästöt tai kustannuslisäykset seuraavasti:"]
[null,"12.","Selvitä ja/tai arvioi, mitkä kustannukset ovat kertaluonteisia lain tullessa voimaan ja mitkä toistuvat vuosittain.",null,null,null,"Ks. välilehti 2B"]
[null,"13.","Selvitä toistuvien velvoitteiden osalta, kuinka monta kertaa vuodessa ne toistuvat (frekvenssi)",null,null,null,"HE:n sisällön mukaisesti"]
[null,"14.","Selvitä, kuinka montaa yritystä velvoite koskee (kohdejoukko)",null,null,null,"Ks. välilehti Apu5_Tietolähteitä"]
[null,"15.","Selvitä ja/tai arvioi, vaatiiko velvoitteen hoitaminen työpanosta ja kuinka kauan yritykseltä kuluu kyseisen velvoitteen hoitamiseen",null,null,null,"Ks. välilehti 2B"]
[null,"16.","Käytä lähtökohtaisesti velvoitteen suorittajana 'Asiantuntijaa', kk-palkka 3600 eur. Tarvittaessa selvitä ja/tai arvioi, minkä vaativuustason ja palkkaluokan työntekijät suorittavat kyseistä velvoitetta.",null,null,null,"Ks. välilehti 2B"]
[null,"17.","Syötä edelliset tiedot välilehdelle 2B"]
[null,"18.","Kun kaikki tarvittavat tiedot on täydennetty välilehdelle 2, siirry välilehdelle 3"]
[null,"19.","Selvitä ja/tai arvioi velvoitteiden lisäyksistä tai niiden purkamisesta yrityksille aiheutuvat muut kustannukset. Sekä säästöt että kustannukset ilmoitetaan positiivisina lukuina. Laskuri muuttaa lopputuloksen etumerkin automaattisesti.",null,null,null,"Jos kyse esim, jostain lain edellyttämästä laitehankinnasta katso Apu3"]
[null,"20.","Syötä tiedot mahdollisista muista kustannuksista välilehdelle 3"]
[null,"21.","Ts. selvitä ja täytä välilehdille 2 ja 3 tarvittavat tiedot yhtäältä niin sanotun standardikustannusmallin (SCM) avulla ja toisaalta selvitä ja täytä myös kaikki muut lakiehdotuksen kustannuslisäykset (esim. vaadittavat investoinnit tai tietojärjestelmämuutokset) ja/tai -säästöt.",null,null,null,"Ks. OM:n ohje s. 18-"]
[]
[null,"Katso yhteenveto ja kirjaa euromääräiset yritysvaikutukset HE:een"]
[null,"22.","Kun kaikki tarvittavat tiedot on täydennetty välilehdille 2 ja 3, siirry välilehdelle 5, jolla näet yhteenvedon"]
[null,"23.","Arvioi, näyttävätkö Yhteenvedon tiedot 'järkeviltä'. Tarkista ja muuta tietoja tarvitteassa. Kirjaa yhteenvedosta euromääräiset yritysvaikutukset HE:een. Alustavaa arviota voi ja tulee tarkistaa lausuntokierroksella sidosryhmiltä saatavilla tiedoilla."]
[]
[null,"24.","Tarvittaessa täydennä vuosittaiset poikkeamat ja toimialan kasvuennuste välilehdelle 4"]
[]
[null,"Tarvittaessa saat lisätietoja ja -ohjeistusta"]
[null,null,"Erno Mähönen",null,"Puhelin 029 50 47066, erno.mahonen@tem.fi"]
[null,null,"Henrikki Oravainen",null,"Puhelin 029 50 47133, henrikki.oravainen@tem.fi"]
[null,null,"Työ- ja elinkeinoministeriö "]

{"sheet":"1_Velvoiteluettelo","index":2,"n_rows":22,"n_cols":19,"rows_kept":22,"cut":false,"hidden":false,"merged":[[4,1,9,5],[10,1,10,5],[13,1,13,2],[13,3,13,6],[14,1,14,2]]}
["Luettelo ja kuvaus lain edellyttämistä velvoitteista, jotka aiheuttavat yrityksille välittömiä kustannuksia, tai sellaisten velvoitteiden poistamisesta"]
[]
["Ohjeet"]
[]
[null,"Kirjaa tähän lain yksittäiset velvoitelisäykset ja purettavat velvoitteet. Lisää tarvittaessa Velvoite-rivejä viereisellä painikkeella.\nVoit myös halutessasi eriyttää tietyn velvoitteen kahdeksi eri velvoitteeksi esim. pienten ja suurten yritysten välille,\nmikäli yritysvaikutukset ovat merkittävästi erilaiset erikokoisten yritysten välillä, tai eri toimialojen välillä.\nKirjoita velvoitteelle 'Nimi' ja 'Kuvaus'. Valitse voimassaolon kesto ja voimaanastumisvuosi. \nValitse säädöksen luonne (Kansallinen, EU, lisäys, purku)."]
[]
[]
[]
[]
[]
[null,"Kun olet täyttänyt tiedot, siirry välilehdelle 2B_Työkustannus"]
[]
["Perusvuosi*",2017,"*) Arvioi kustannukset valmisteluhetken nykyrahassa. Laskuri laskee Yksi yhdestä -kirjanpitoa varten  valmisteluvuoden kustannuksista vertailukelpoiset arvot valittuun perusvuoteen."]
[null,"Lain nimi ja HE-numero:"]
[null,"Koko yrityskentän koko, jota lakimuutos koskee (valinnainen tieto**)",null,null,"**) Tiedon puuttuminen voi vääristää yrityskohtaisia tuloksia."]
[null,"Velvoite- numero","Nimi (vapaamuotoinen)","Kuvaus lain yritykselle aiheuttamasta velvoitteesta tai velvoitteen purkamisesta (vapaamuotoinen)","Voimassaolo-aika\nValitse solujen valikosta.","Voimaantulo- vuosi (ilmoita yhtenä lukuna esim. \"2018\")","Säädöksen luonne.\nValitse ao. solujen valikosta sopiva kuvailu. Sääntelyä vai sääntelyn purkua? EU-minimisääntelyä vai ei?"]
[{"$f":"IF(AND(ISTEXT(C17),ISNUMBER(F17),ISTEXT(G17)),\"ok\",IF(AND(ISBLANK(C17),ISBLANK(F17),ISBLANK(G17)),\"\",\"täydennä!\"))","v":""},{"$f":"\"Velvoite\"&S17","v":"Velvoite1"},null,null,"toistaiseksi",null,null,null,null,null,null,null,null,null,null,null,null,null,1]
[{"$f":"IF(AND(ISTEXT(C18),ISNUMBER(F18),ISTEXT(G18)),\"ok\",IF(AND(ISBLANK(C18),ISBLANK(F18),ISBLANK(G18)),\"\",\"täydennä!\"))","v":""},{"$f":"\"Velvoite\"&S18","v":"Velvoite2"},null,null,"toistaiseksi",null,null,null,null,null,null,null,null,null,null,null,null,null,{"$f":"S17+1","v":2}]
[{"$f":"IF(AND(ISTEXT(C19),ISNUMBER(F19),ISTEXT(G19)),\"ok\",IF(AND(ISBLANK(C19),ISBLANK(F19),ISBLANK(G19)),\"\",\"täydennä!\"))","v":""},{"$f":"\"Velvoite\"&S19","v":"Velvoite3"},null,null,"toistaiseksi",null,null,null,null,null,null,null,null,null,null,null,null,null,{"$f":"S18+1","v":3}]
[{"$f":"IF(AND(ISTEXT(C20),ISNUMBER(F20),ISTEXT(G20)),\"ok\",IF(AND(ISBLANK(C20),ISBLANK(F20),ISBLANK(G20)),\"\",\"täydennä!\"))","v":""},{"$f":"\"Velvoite\"&S20","v":"Velvoite4"},null,null,"toistaiseksi",null,null,null,null,null,null,null,null,null,null,null,null,null,{"$f":"S19+1","v":4}]
[{"$f":"IF(AND(ISTEXT(C21),ISNUMBER(F21),ISTEXT(G21)),\"ok\",IF(AND(ISBLANK(C21),ISBLANK(F21),ISBLANK(G21)),\"\",\"täydennä!\"))","v":""},{"$f":"\"Velvoite\"&S21","v":"Velvoite5"},null,null,"toistaiseksi",null,null,null,null,null,null,null,null,null,null,null,null,null,{"$f":"S20+1","v":5}]
[null,null,null,null,null,null,null,null,null,null,null,null,null,null,null,null,null,null,{"$f":"S21+1","v":6}]

{"sheet":"2B_Työkustannus","index":3,"n_rows":108,"n_cols":12,"rows_kept":108,"cut":false,"hidden":false,"merged":[[55,3,55,4],[18,11,20,13],[14,11,17,13],[10,11,12,14],[14,5,14,8],[25,5,25,8],[36,3,38,7],[5,2,5,4],[4,2,4,4],[63,2,65,4],[74,2,75,4],[6,2,6,4],[11,2,11,4],[10,2,10,4],[44,3,44,4],[46,3,46,4],[47,3,47,4],[48,3,48,4],[54,3,54,4],[56,3,56,4],[57,3,57,4],[58,3,58,4],[45,3,45,4]]}
["Palkkaluokat ja velvoitteen vaatima työaika --> Velvoitteiden aiheuttama työkustannus"]
[]
["Ohjeet"]
[]
[null,null,"Täytä frekvenssi ja yritysten lukumäärä.",null,null,"Kirjoita tietoja vain keltaiseksi maalattuihin soluihin"]
[null,null,"Täytä arviot vaadittavista työtunneista. Ks. ohjeita soluista, joissa punainen kulma.",null,null,"Älä muokkaa harmaalla pohjalla olevia soluja"]
[null,null,"Kun olet täyttänyt tuntitiedot, siirry välilehdelle 3_Muut kustannukset",null,null,{"$f":"IF(ISTEXT(OFFSET('1_Velvoiteluettelo'!B$21,5,0)),OFFSET('1_Velvoiteluettelo'!B$21,5,0),\"\")","v":""},{"$f":"IF(ISTEXT(OFFSET('1_Velvoiteluettelo'!C$21,5,0)),OFFSET('1_Velvoiteluettelo'!C$21,5,0),\"\")","v":""}]
[]
[null,"Laskentatekijät",null,null,"Velvoitteen nimi",{"$f":"IF(ISTEXT(OFFSET('1_Velvoiteluettelo'!$C17,F105,0)),(OFFSET('1_Velvoiteluettelo'!$C17,F105,0)),\"Velvoite\"&F105+1)","v":"Velvoite1"},{"$f":"IF(ISTEXT(OFFSET('1_Velvoiteluettelo'!$C17,G105,0)),(OFFSET('1_Velvoiteluettelo'!$C17,G105,0)),\"Velvoite\"&G105+1)","v":"Velvoite2"},{"$f":"IF(ISTEXT(OFFSET('1_Velvoiteluettelo'!$C17,H105,0)),(OFFSET('1_Velvoiteluettelo'!$C17,H105,0)),\"Velvoite\"&H105+1)","v":"Velvoite3"},{"$f":"IF(ISTEXT(OFFSET('1_Velvoiteluettelo'!$C17,I105,0)),(OFFSET('1_Velvoiteluettelo'!$C17,I105,0)),\"Velvoite\"&I105+1)","v":"Velvoite4"},{"$f":"IF(ISTEXT(OFFSET('1_Velvoiteluettelo'!$C17,J105,0)),(OFFSET('1_Velvoiteluettelo'!$C17,J105,0)),\"Velvoite\"&J105+1)","v":"Velvoite5"}]
[]
[null,"A1","Lukumäärä yrityksistä, joita velvoite tai sen purku koskee (kohdejoukko)"]
[null,"A2","Frekvenssi per vuosi*"]
[]
[null,"B1","TOISTUVAT HENKILÖSTÖKUSTANNUKSET TAI -SÄÄSTÖT (1. VUOSI JA SEN JÄLKEEN)"]
[null,null,null,"Palkkaluokka","Kuukausipalkka","Toistuvat työTUNNIT (raportointi, luvat, yms.) per yritys*"]
[null,null,null,"Johtaja",6500,0,0,0,0,0]
[null,null,null,"Ylemmän tason asiantuntija, erityisasiantuntija",4500,0,0,0,0,0]
[null,null,"=>","Asiantuntija (oletus)",3600,0,0,0,0,0]
[null,null,null,"Yleissihteeri, tallentaja, palkanlaskija",2800,0,0,0,0,0]
[null,null,null,"Toimistoavustaja",2600,0,0,0,0,0]
[null,null,null,"Muu, mikä?",null,0,0,0,0,0]
[null,null,null,{"$f":"D50","v":"Toistuva hlöstökustannus yht kohdeyrityksille p.a."},null,{"$f":"F50","v":0},{"$f":"G50","v":0},0,0,{"$f":"J50","v":0}]
[null,null,null,"Tarkistus",null,{"$f":"IF(ISNUMBER(F11),IF(AND(AND(F87>0,ISNUMBER(OFFSET('1_Velvoiteluettelo'!$F17,F105,0))),NOT(F12=0)),\"Ok!\",IF(AND(AND(F87>0,ISNUMBER(OFFSET('1_Velvoiteluettelo'!$F17,F105,0))),(F12=0)),\"Lisää frekvenssi!\",IF(AND(F87=0,ISBLANK(OFFSET('1_Velvoiteluettelo'!$F17,F105,0))),\"\",IF(AND(F87>0,ISBLANK(OFFSET('1_Velvoiteluettelo'!$F17,F105,0))),\"Tarkista voimaantulo!\",\"Lisää tunnit (jos tarpeen)\")))),IF(ISNUMBER(OFFSET('1_Velvoiteluettelo'!$F17,F105,0)),\"Lisää yritysten lukumäärä!\",\"\"))","v":""},{"$f":"IF(ISNUMBER(G11),IF(AND(AND(G87>0,ISNUMBER(OFFSET('1_Velvoiteluettelo'!$F17,G105,0))),NOT(G12=0)),\"Ok!\",IF(AND(AND(G87>0,ISNUMBER(OFFSET('1_Velvoiteluettelo'!$F17,G105,0))),(G12=0)),\"Lisää frekvenssi!\",IF(AND(G87=0,ISBLANK(OFFSET('1_Velvoiteluettelo'!$F17,G105,0))),\"\",IF(AND(G87>0,ISBLANK(OFFSET('1_Velvoiteluettelo'!$F17,G105,0))),\"Tarkista voimaantulo!\",\"Lisää tunnit (jos tarpeen)\")))),IF(ISNUMBER(OFFSET('1_Velvoiteluettelo'!$F17,G105,0)),\"Lisää yritysten lukumäärä!\",\"\"))","v":""},{"$f":"IF(ISNUMBER(H11),IF(AND(AND(H87>0,ISNUMBER(OFFSET('1_Velvoiteluettelo'!$F17,H105,0))),NOT(H12=0)),\"Ok!\",IF(AND(AND(H87>0,ISNUMBER(OFFSET('1_Velvoiteluettelo'!$F17,H105,0))),(H12=0)),\"Lisää frekvenssi!\",IF(AND(H87=0,ISBLANK(OFFSET('1_Velvoiteluettelo'!$F17,H105,0))),\"\",IF(AND(H87>0,ISBLANK(OFFSET('1_Velvoiteluettelo'!$F17,H105,0))),\"Tarkista voimaantulo!\",\"Lisää tunnit (jos tarpeen)\")))),IF(ISNUMBER(OFFSET('1_Velvoiteluettelo'!$F17,H105,0)),\"Lisää yritysten lukumäärä!\",\"\"))","v":""},{"$f":"IF(ISNUMBER(I11),IF(AND(AND(I87>0,ISNUMBER(OFFSET('1_Velvoiteluettelo'!$F17,I105,0))),NOT(I12=0)),\"Ok!\",IF(AND(AND(I87>0,ISNUMBER(OFFSET('1_Velvoiteluettelo'!$F17,I105,0))),(I12=0)),\"Lisää frekvenssi!\",IF(AND(I87=0,ISBLANK(OFFSET('1_Velvoiteluettelo'!$F17,I105,0))),\"\",IF(AND(I87>0,ISBLANK(OFFSET('1_Velvoiteluettelo'!$F17,I105,0))),\"Tarkista voimaantulo!\",\"Lisää tunnit (jos tarpeen)\")))),IF(ISNUMBER(OFFSET('1_Velvoiteluettelo'!$F17,I105,0)),\"Lisää yritysten lukumäärä!\",\"\"))","v":""},{"$f":"IF(ISNUMBER(J11),IF(AND(AND(J87>0,ISNUMBER(OFFSET('1_Velvoiteluettelo'!$F17,J105,0))),NOT(J12=0)),\"Ok!\",IF(AND(AND(J87>0,ISNUMBER(OFFSET('1_Velvoiteluettelo'!$F17,J105,0))),(J12=0)),\"Lisää frekvenssi!\",IF(AND(J87=0,ISBLANK(OFFSET('1_Velvoiteluettelo'!$F17,J105,0))),\"\",IF(AND(J87>0,ISBLANK(OFFSET('1_Velvoiteluettelo'!$F17,J105,0))),\"Tarkista voimaantulo!\",\"Lisää tunnit (jos tarpeen)\")))),IF(ISNUMBER(OFFSET('1_Velvoiteluettelo'!$F17,J105,0)),\"Lisää yritysten lukumäärä!\",\"\"))","v":""}]
[]
[null,"C1","KERTALUONTEISET HENKILÖSTÖKUSTANNUKSET (1. VUOSI) (sääntelyyn sopeutuminen)"]
[null,null,null,"Palkkaluokka","Kuukausipalkka","Sopeuttamisesta vain kerran koituvat työTUNNIT per yritys"]
[null,null,null,"Johtaja",6500,0,0,0,0,0]
[null,null,null,"Ylemmän tason asiantuntija, erityisasiantuntija",4500,0,0,0,0,0]
[null,null,"=>","Asiantuntija (oletus)",3600,0,0,0,0,0]
[null,null,null,"Yleissihteeri, tallentaja, palkanlaskija",2800,0,0,0,0,0]
[null,null,null,"Toimistoavustaja",2600,0,0,0,0,0]
[null,null,null,"Muu, mikä?",null,0,0,0,0,0]
[null,null,null,"Kertaluonteinen hlöstökustannus yht kohdeyrityksille",null,{"$f":"F59","v":0},{"$f":"G59","v":0},{"$f":"H59","v":0},{"$f":"I59","v":0},{"$f":"J59","v":0}]
[null,null,null,"Tarkistus",null,{"$f":"IF(AND(F96>0,ISNUMBER(OFFSET('1_Velvoiteluettelo'!$F17,F105,0))),\"Ok!\",IF(AND(F96=0,ISBLANK(OFFSET('1_Velvoiteluettelo'!$F17,F105,0))),\"\",IF(AND(F96>0,ISBLANK(OFFSET('1_Velvoiteluettelo'!$F17,F105,0))),\"Tarkista voimaantulo!\",\"Lisää tunnit jos tarpeen\")))","v":""},{"$f":"IF(AND(G96>0,ISNUMBER(OFFSET('1_Velvoiteluettelo'!$F17,G105,0))),\"Ok!\",IF(AND(G96=0,ISBLANK(OFFSET('1_Velvoiteluettelo'!$F17,G105,0))),\"\",IF(AND(G96>0,ISBLANK(OFFSET('1_Velvoiteluettelo'!$F17,G105,0))),\"Tarkista voimaantulo!\",\"Lisää tunnit jos tarpeen\")))","v":""},{"$f":"IF(AND(H96>0,ISNUMBER(OFFSET('1_Velvoiteluettelo'!$F17,H105,0))),\"Ok!\",IF(AND(H96=0,ISBLANK(OFFSET('1_Velvoiteluettelo'!$F17,H105,0))),\"\",IF(AND(H96>0,ISBLANK(OFFSET('1_Velvoiteluettelo'!$F17,H105,0))),\"Tarkista voimaantulo!\",\"Lisää tunnit jos tarpeen\")))","v":""},{"$f":"IF(AND(I96>0,ISNUMBER(OFFSET('1_Velvoiteluettelo'!$F17,I105,0))),\"Ok!\",IF(AND(I96=0,ISBLANK(OFFSET('1_Velvoiteluettelo'!$F17,I105,0))),\"\",IF(AND(I96>0,ISBLANK(OFFSET('1_Velvoiteluettelo'!$F17,I105,0))),\"Tarkista voimaantulo!\",\"Lisää tunnit jos tarpeen\")))","v":""},{"$f":"IF(AND(J96>0,ISNUMBER(OFFSET('1_Velvoiteluettelo'!$F17,J105,0))),\"Ok!\",IF(AND(J96=0,ISBLANK(OFFSET('1_Velvoiteluettelo'!$F17,J105,0))),\"\",IF(AND(J96>0,ISBLANK(OFFSET('1_Velvoiteluettelo'!$F17,J105,0))),\"Tarkista voimaantulo!\",\"Lisää tunnit jos tarpeen\")))","v":""}]
[]
[null,null,null,"Kirjoita tähän perustelut ja kuinka tiedot on hankittu, lähdeviittaukset."]
[]
[]
[]
[]
[]
[null,null,"Taustalaskuja - nämä tiedoksi ja nähtäväksi, ei vaadi valmistelijalta toimenpiteitä. Jos yllä olevat tiedot täytetty, siirry seuraaville välilehdille."]
[]
[null,null,"B1","Toistuvat henkilöstökulut tai -säästöt",null,{"$f":"F9","v":"Velvoite1"},{"$f":"G9","v":"Velvoite2"},{"$f":"H9","v":"Velvoite3"},{"$f":"I9","v":"Velvoite4"},{"$f":"J9","v":"Velvoite5"}]
[null,null,null,"Käytetty keskipalkka (€/kk)",null,{"$f":"IF(ISNUMBER($E$21),F89*$E$89+F90*$E$90+F91*$E$91+F92*$E$92+F93*$E$93+F94*$E$21,F89*$E$89+F90*$E$90+F91*$E$91+F92*$E$92+F93*$E$93)","v":0},{"$f":"IF(ISNUMBER($E$21),G89*$E$89+G90*$E$90+G91*$E$91+G92*$E$92+G93*$E$93+G94*$E$21,G89*$E$89+G90*$E$90+G91*$E$91+G92*$E$92+G93*$E$93)","v":0},0,0,0]
[null,null,null,"Kk-työkustannus ml. palkan sivukulu ja yleiskulu",null,{"$f":"(1+$E$69)*F45","v":0},{"$f":"(1+$E$69)*G45","v":0},0,0,0]
[null,null,null,"Tuntitaksa sivu- ja yleiskuluineen (€/h)",null,{"$f":"F46/$E$78","v":0},{"$f":"G46/$E$78","v":0},0,0,0]
[null,null,null,"Tehtävään käytettävät tunnit p.a.",null,{"$f":"F87*F12","v":0},{"$f":"G87*G12","v":0},{"$f":"H87*H12","v":0},{"$f":"I87*I12","v":0},{"$f":"J87*J12","v":0}]
[null,null,null,"Kustannukset vuodessa per yritys",null,{"$f":"IF(OR(OFFSET('1_Velvoiteluettelo'!$G$17,F105,0)=\"EU-minimisääntelyä\",OFFSET('1_Velvoiteluettelo'!$G$17,F105,0)=\"Kansallista tai EU-minimin ylittävää sääntelyä\"),F48*F47,IF(AND(ISBLANK(OFFSET('1_Velvoiteluettelo'!$G$17,F105,0)),F48>0),\"Täydennä sivu 1\",(-F48*F47)))","v":0},{"$f":"IF(OR(OFFSET('1_Velvoiteluettelo'!$G$17,G105,0)=\"EU-minimisääntelyä\",OFFSET('1_Velvoiteluettelo'!$G$17,G105,0)=\"Kansallista tai EU-minimin ylittävää sääntelyä\"),G48*G47,IF(AND(ISBLANK(OFFSET('1_Velvoiteluettelo'!$G$17,G105,0)),G48>0),\"Täydennä sivu 1\",(-G48*G47)))","v":0},{"$f":"IF(OR(OFFSET('1_Velvoiteluettelo'!$G$17,H105,0)=\"EU-minimisääntelyä\",OFFSET('1_Velvoiteluettelo'!$G$17,H105,0)=\"Kansallista tai EU-minimin ylittävää sääntelyä\"),H48*H47,IF(AND(ISBLANK(OFFSET('1_Velvoiteluettelo'!$G$17,H105,0)),H48>0),\"Täydennä sivu 1\",(-H48*H47)))","v":0},{"$f":"IF(OR(OFFSET('1_Velvoiteluettelo'!$G$17,I105,0)=\"EU-minimisääntelyä\",OFFSET('1_Velvoiteluettelo'!$G$17,I105,0)=\"Kansallista tai EU-minimin ylittävää sääntelyä\"),I48*I47,IF(AND(ISBLANK(OFFSET('1_Velvoiteluettelo'!$G$17,I105,0)),I48>0),\"Täydennä sivu 1\",(-I48*I47)))","v":0},{"$f":"IF(OR(OFFSET('1_Velvoiteluettelo'!$G$17,J105,0)=\"EU-minimisääntelyä\",OFFSET('1_Velvoiteluettelo'!$G$17,J105,0)=\"Kansallista tai EU-minimin ylittävää sääntelyä\"),J48*J47,IF(AND(ISBLANK(OFFSET('1_Velvoiteluettelo'!$G$17,J105,0)),J48>0),\"Täydennä sivu 1\",(-J48*J47)))","v":0}]
[null,null,null,"Toistuva hlöstökustannus yht kohdeyrityksille p.a.",null,{"$f":"F11*F49","v":0},{"$f":"G11*G49","v":0},{"$f":"H11*H49","v":0},{"$f":"I11*I49","v":0},{"$f":"J11*J49","v":0}]
[]
[]
[null,null,"C1","Kertaluontoiset henkilöstökulut",null,{"$f":"F9","v":"Velvoite1"},{"$f":"G9","v":"Velvoite2"},{"$f":"H9","v":"Velvoite3"},{"$f":"I9","v":"Velvoite4"},{"$f":"J9","v":"Velvoite5"}]
[null,null,null,"Henkilöstökulut per yritys",null,{"$f":"F57*F58","v":0},{"$f":"G57*G58","v":0},0,0,0]
[null,null,null,"Käytetty keskipalkka (€/kk)",null,{"$f":"IF(ISNUMBER($E$32),F98*$E$89+F99*$E$90+F100*$E$91+F101*$E$92+F102*$E$93+F103*$E$32,F98*$E$89+F99*$E$90+F100*$E$91+F101*$E$92+F102*$E$93)","v":0},{"$f":"IF(ISNUMBER($E$32),G98*$E$89+G99*$E$90+G100*$E$91+G101*$E$92+G102*$E$93+G103*$E$32,G98*$E$89+G99*$E$90+G100*$E$91+G101*$E$92+G102*$E$93)","v":0},0,0,0]
[null,null,null,"Kk-työkustannus ml. palkan sivukulu ja yleiskulu",null,{"$f":"(1+$E$69)*F55","v":0},{"$f":"(1+$E$69)*G55","v":0},0,0,0]
[null,null,null,"Tuntitaksa sivu- ja yleiskuluineen (€/h)",null,{"$f":"F56/$E$78","v":0},{"$f":"G56/$E$78","v":0},0,0,0]
[null,null,null,"Tehtävään käytettävät tunnit vuodessa",null,{"$f":"F96","v":0},{"$f":"G96","v":0},0,0,0]
[null,null,null,"Kertaluonteinen hlöstökustannus yht. kohdeyrityksille",null,{"$f":"F54*F11","v":0},{"$f":"G54*G11","v":0},{"$f":"H54*H11","v":0},{"$f":"I54*I11","v":0},{"$f":"J54*J11","v":0}]
[]
[]
[]
[null,null,"Palkan sivukulu ja yleiskulu"]
[null,null,"Palkan sivukulu ja yleiskulu perustuvat … Tähän ei tarvitse syöttää tietoa, eikä tätä tarvitse kopioida. Tämä on vain tiedoksi kertoimesta, joka on valmiina laskukaavassa."]
[]
[]
[null,null,null,"Palkkojen sivukulu-%",0.34599999999999997]
[null,null,null,"Yleiskulu-%",0.25]
[null,null,null,"Yhteensä",{"$f":"E68+E67","v":0.59599999999999997},"Palkka kerrotaan kertoimella 1+(tämä %-luku)"]
[]
[]
[]
[]
[null,null,"Työtunnit (yksityinen sektori)"]
[null,null,"Tähän ei tarvitse syöttää tietoa, eikä tätä tarvitse kopioida. Tämä on vain tiedoksi jakajasta, joka on valmiina laskukaavassa."]
[]
[null,null,null,null,"Työtuntia"]
[null,null,null,"Kuukaudessa",{"$f":"E80*22","v":166.71600000000001},"Kuukausipalkka jaetaan tällä tuntimäärällä tuntipalkan laskemiseksi"]
[null,null,null,"Viikossa",37.89]
[null,null,null,"Päivässä",{"$f":"E79/5","v":7.5780000000000003}]
[]
[]
[]
[]
[]
[null,null,null,"Tarkat palkkasummat 2016",null,"Taustalaskuja, älä muuta alla olevien solujen tietoja"]
[null,null,null,null,null,{"$f":"IF(ISNUMBER($E$21),SUM(F16:F21),SUM(F16:F20))","v":0},{"$f":"IF(ISNUMBER($E$21),SUM(G16:G21),SUM(G16:G20))","v":0},{"$f":"IF(ISNUMBER($E$21),SUM(H16:H21),SUM(H16:H20))","v":0},{"$f":"IF(ISNUMBER($E$21),SUM(I16:I21),SUM(I16:I20))","v":0},{"$f":"IF(ISNUMBER($E$21),SUM(J16:J21),SUM(J16:J20))","v":0}]
[null,null,null,"Palkkaluokka"]
[null,null,null,"Johtaja (1 AML 2010)",6577,{"$f":"IF((F$87>0),(F16/F$87),0)","v":0},0,0,0,0]
[null,null,null,"Ylemmän tason asiantuntija, erityisasiantuntija (2 AML 2010)",4475,0,0,0,0,0]
[null,null,null,"Asiantuntija (3 AML 2010)",3590,0,0,0,0,0]
[null,null,null,"Yleissihteeri, tallentaja, palkanlaskija (412, 4132, 431 AML 2010)",2790,0,0,0,0,0]
[null,null,null,"Toimistoavustaja (411 AML 2010)",2579,0,0,0,0,0]
[null,null,null,null,null,0,0,0,0,0]
[null,null,null,"Lähde: Tilastokeskus, palkat ja työvoimakustannukset yksityisellä sektorilla"]
[null,null,null,"Ks. välilehti Taustatietoa palkat am lk",null,{"$f":"IF(ISNUMBER($E$32),SUM(F27:F32),SUM(F27:F31))","v":0},{"$f":"IF(ISNUMBER($E$32),SUM(G27:G32),SUM(G27:G31))","v":0},{"$f":"IF(ISNUMBER($E$32),SUM(H27:H32),SUM(H27:H31))","v":0},{"$f":"IF(ISNUMBER($E$32),SUM(I27:I32),SUM(I27:I31))","v":0},{"$f":"IF(ISNUMBER($E$32),SUM(J27:J32),SUM(J27:J31))","v":0}]
[]
[null,null,null,null,null,{"$f":"IF((F$96>0),(F27/F$96),0)","v":0},0,0,0,0]
[null,null,null,null,null,0,0,0,0,0]
[null,null,null,null,null,0,0,0,0,0]
[null,null,null,null,null,0,0,0,0,0]
[null,null,null,null,null,0,0,0,0,0]
[null,null,null,null,null,0,0,0,0,0]
[]
[null,null,null,null,null,0,{"$f":"F105+1","v":1},{"$f":"G105+1","v":2},{"$f":"H105+1","v":3},{"$f":"I105+1","v":4},{"$f":"J105+1","v":5},4]
[]
[]
[null,null,null,null,null,0]

{"sheet":"3_Muut kustannukset","index":4,"n_rows":74,"n_cols":15,"rows_kept":74,"cut":false,"hidden":false,"merged":[[48,6,60,10],[20,0,20,1],[12,0,12,1],[35,6,35,7],[27,19,31,30],[23,19,24,29],[12,6,12,7],[14,6,14,7],[35,0,35,1],[44,6,44,7],[22,0,27,1],[37,0,42,1],[34,0,34,1]]}
["Muut toistuvat ja kertaluonteiset kustannuserät --> Kaikki kustannukset yhteensä"]
[]
["Ohjeet"]
[]
[null,"Tällä taulukon välilehdellä lasketaan sääntelytaakka kokonaisuudessaan yritys- ja tehtäväkohtaisesti sekä samalla koskien koko kohdejoukkoa."]
[null,"Täydennä alla laskentataulukkoon keltaisella pohjalla olevat kohdat B2 (toistuvat) ja C2 (kertaluonteiset) tarpeen mukaan. Ks. ohjeita soluista, joissa punainen kulma."]
[null,"Kun olet täyttänyt tiedot, siirry joko välilehdelle",null,null,null,null,null,null,"\"4_Poikkeukset\"","tai","\"5_Yhteenveto\""]
[]
[]
[null,null,null,"A.","Perustiedot, eli kohdejoukko ja frekvenssi (tiedot siirtyy välilehdeltä 2B_työkustannus. Täydennä ja korjaa nämä tarvittaessa edelliselle välilehdelle.)"]
[]
[null,null,null,null,null,null,null,null,{"$f":"IF(ISTEXT(OFFSET('1_Velvoiteluettelo'!$C17,I74,0)),(OFFSET('1_Velvoiteluettelo'!$C17,I74,0)),\"Velvoite\"&I74+1)","v":"Velvoite1"},{"$f":"IF(ISTEXT(OFFSET('1_Velvoiteluettelo'!$C17,J74,0)),(OFFSET('1_Velvoiteluettelo'!$C17,J74,0)),\"Velvoite\"&J74+1)","v":"Velvoite2"},{"$f":"IF(ISTEXT(OFFSET('1_Velvoiteluettelo'!$C17,K74,0)),(OFFSET('1_Velvoiteluettelo'!$C17,K74,0)),\"Velvoite\"&K74+1)","v":"Velvoite3"},{"$f":"IF(ISTEXT(OFFSET('1_Velvoiteluettelo'!$C17,L74,0)),(OFFSET('1_Velvoiteluettelo'!$C17,L74,0)),\"Velvoite\"&L74+1)","v":"Velvoite4"},{"$f":"IF(ISTEXT(OFFSET('1_Velvoiteluettelo'!$C17,M74,0)),(OFFSET('1_Velvoiteluettelo'!$C17,M74,0)),\"Velvoite\"&M74+1)","v":"Velvoite5"}]
[null,null,null,null,null,"A1","Kohdejoukko (yritysten lukumäärä)",null,{"$f":"OFFSET('2B_Työkustannus'!$F11,0,1*I74)","v":0},{"$f":"OFFSET('2B_Työkustannus'!$F11,0,1*J74)","v":0},{"$f":"OFFSET('2B_Työkustannus'!$F11,0,1*K74)","v":0},{"$f":"OFFSET('2B_Työkustannus'!$F11,0,1*L74)","v":0},{"$f":"OFFSET('2B_Työkustannus'!$F11,0,1*M74)","v":0}]
[null,null,null,null,null,null,null,null,{"$f":"IF(AND(NOT(I30=0),ISBLANK(I13)),\"Täydennä sivu 2!\",IF(AND(NOT(I30=0),ISNUMBER(I13)),\"Ok!\",\"\"))","v":""},{"$f":"IF(AND(NOT(J30=0),ISBLANK(J13)),\"Täydennä sivu 2!\",IF(AND(NOT(J30=0),ISNUMBER(J13)),\"Ok!\",\"\"))","v":""},{"$f":"IF(AND(NOT(K30=0),ISBLANK(K13)),\"Täydennä sivu 2!\",IF(AND(NOT(K30=0),ISNUMBER(K13)),\"Ok!\",\"\"))","v":""},{"$f":"IF(AND(NOT(L30=0),ISBLANK(L13)),\"Täydennä sivu 2!\",IF(AND(NOT(L30=0),ISNUMBER(L13)),\"Ok!\",\"\"))","v":""},{"$f":"IF(AND(NOT(M30=0),ISBLANK(M13)),\"Täydennä sivu 2!\",IF(AND(NOT(M30=0),ISNUMBER(M13)),\"Ok!\",\"\"))","v":""}]
[null,null,null,null,null,"A2","Frekvenssi per vuosi",null,{"$f":"OFFSET('2B_Työkustannus'!$F12,0,1*I74)","v":0},{"$f":"OFFSET('2B_Työkustannus'!$F12,0,1*J74)","v":0},{"$f":"OFFSET('2B_Työkustannus'!$F12,0,1*K74)","v":0},{"$f":"OFFSET('2B_Työkustannus'!$F12,0,1*L74)","v":0},{"$f":"OFFSET('2B_Työkustannus'!$F12,0,1*M74)","v":0}]
[]
[null,null,null,"B.","Toistuvat kustannukset tai säästöt (1. vuosi ja sen jälkeen)"]
[null,null,null,null,null,null,null,null,"Lain yritykselle aiheuttamat velvoitteet, joista suoria kustannuslisäyksiä tai velvoitteet, joiden purusta kustannussäästöjä"]
[]
[null,null,null,null,null,"B1","Toistuvat henkilöstökustannukset tai -säästöt",null,null,null,null,null,null,null,"Yhteensä"]
[null,null,null,null,null,null,"Toistuva hlöstökustannus yht kohdeyrityksille p.a.",null,{"$f":"OFFSET('2B_Työkustannus'!$F22,0,1*I74)","v":0},{"$f":"OFFSET('2B_Työkustannus'!$F22,0,1*J74)","v":0},{"$f":"OFFSET('2B_Työkustannus'!$F22,0,1*K74)","v":0},{"$f":"OFFSET('2B_Työkustannus'!$F22,0,1*L74)","v":0},{"$f":"OFFSET('2B_Työkustannus'!$F22,0,1*M74)","v":0},null,{"$f":"SUM(I21:N21)","v":0}]
[]
[null,null,null,null,null,"B2","Muut toistuvat kustannukset velvoitteista tai säästöt velvoitteiden purusta"]
[null,null,null,null,null,null,null,"Hankintakustannukset per frekvenssi",0,0,0,0,0]
[null,null,null,null,null,null,null,"Välinekustannukset per frekvenssi",0,0,0,0,0]
[null,null,null,null,null,null,null,"Muut kustannukset per frekvenssi",0,0,0,0,0]
[null,null,null,null,null,null,null,"Kustannukset yhteensä per yritys p.a.",{"$f":"IF(OR(OFFSET('1_Velvoiteluettelo'!$G$17,I74,0)=\"EU-minimisääntelyä\",OFFSET('1_Velvoiteluettelo'!$G$17,I74,0)=\"Kansallista tai EU-minimin ylittävää sääntelyä\"),SUM(I24:I26)*I15,IF(AND(ISBLANK(OFFSET('1_Velvoiteluettelo'!$G$17,I74,0)),I24+I25+I26>0),\"Täydennä sivu 1\",(-SUM(I24:I26)*I15)))","v":0},{"$f":"IF(OR(OFFSET('1_Velvoiteluettelo'!$G$17,J74,0)=\"EU-minimisääntelyä\",OFFSET('1_Velvoiteluettelo'!$G$17,J74,0)=\"Kansallista tai EU-minimin ylittävää sääntelyä\"),SUM(J24:J26)*J15,IF(AND(ISBLANK(OFFSET('1_Velvoiteluettelo'!$G$17,J74,0)),J24+J25+J26>0),\"Täydennä sivu 1\",(-SUM(J24:J26)*J15)))","v":0},{"$f":"IF(OR(OFFSET('1_Velvoiteluettelo'!$G$17,K74,0)=\"EU-minimisääntelyä\",OFFSET('1_Velvoiteluettelo'!$G$17,K74,0)=\"Kansallista tai EU-minimin ylittävää sääntelyä\"),SUM(K24:K26)*K15,IF(AND(ISBLANK(OFFSET('1_Velvoiteluettelo'!$G$17,K74,0)),K24+K25+K26>0),\"Täydennä sivu 1\",(-SUM(K24:K26)*K15)))","v":0},{"$f":"IF(OR(OFFSET('1_Velvoiteluettelo'!$G$17,L74,0)=\"EU-minimisääntelyä\",OFFSET('1_Velvoiteluettelo'!$G$17,L74,0)=\"Kansallista tai EU-minimin ylittävää sääntelyä\"),SUM(L24:L26)*L15,IF(AND(ISBLANK(OFFSET('1_Velvoiteluettelo'!$G$17,L74,0)),L24+L25+L26>0),\"Täydennä sivu 1\",(-SUM(L24:L26)*L15)))","v":0},{"$f":"IF(OR(OFFSET('1_Velvoiteluettelo'!$G$17,M74,0)=\"EU-minimisääntelyä\",OFFSET('1_Velvoiteluettelo'!$G$17,M74,0)=\"Kansallista tai EU-minimin ylittävää sääntelyä\"),SUM(M24:M26)*M15,IF(AND(ISBLANK(OFFSET('1_Velvoiteluettelo'!$G$17,M74,0)),M24+M25+M26>0),\"Täydennä sivu 1\",(-SUM(M24:M26)*M15)))","v":0},null,{"$f":"SUM(I27:N27)","v":0}]
[null,null,null,null,null,null,"Muut toistuvat kustannukset yht kohdeyrityksille p.a.",null,{"$f":"IF(OR(OFFSET('1_Velvoiteluettelo'!$G$17,I74,0)=\"EU-minimisääntelyä\",OFFSET('1_Velvoiteluettelo'!$G$17,I74,0)=\"Kansallista tai EU-minimin ylittävää sääntelyä\"),(I24+I25+I26)*I13*I15,IF(AND(ISBLANK(OFFSET('1_Velvoiteluettelo'!$G$17,I74,0)),I24+I25+I26>0),\"Täydennä sivu 1\",(-(I24+I25+I26)*I13*I15)))","v":0},{"$f":"IF(OR(OFFSET('1_Velvoiteluettelo'!$G$17,J74,0)=\"EU-minimisääntelyä\",OFFSET('1_Velvoiteluettelo'!$G$17,J74,0)=\"Kansallista tai EU-minimin ylittävää sääntelyä\"),(J24+J25+J26)*J13*J15,IF(AND(ISBLANK(OFFSET('1_Velvoiteluettelo'!$G$17,J74,0)),J24+J25+J26>0),\"Täydennä sivu 1\",(-(J24+J25+J26)*J13*J15)))","v":0},{"$f":"IF(OR(OFFSET('1_Velvoiteluettelo'!$G$17,K74,0)=\"EU-minimisääntelyä\",OFFSET('1_Velvoiteluettelo'!$G$17,K74,0)=\"Kansallista tai EU-minimin ylittävää sääntelyä\"),(K24+K25+K26)*K13*K15,IF(AND(ISBLANK(OFFSET('1_Velvoiteluettelo'!$G$17,K74,0)),K24+K25+K26>0),\"Täydennä sivu 1\",(-(K24+K25+K26)*K13*K15)))","v":0},{"$f":"IF(OR(OFFSET('1_Velvoiteluettelo'!$G$17,L74,0)=\"EU-minimisääntelyä\",OFFSET('1_Velvoiteluettelo'!$G$17,L74,0)=\"Kansallista tai EU-minimin ylittävää sääntelyä\"),(L24+L25+L26)*L13*L15,IF(AND(ISBLANK(OFFSET('1_Velvoiteluettelo'!$G$17,L74,0)),L24+L25+L26>0),\"Täydennä sivu 1\",(-(L24+L25+L26)*L13*L15)))","v":0},{"$f":"IF(OR(OFFSET('1_Velvoiteluettelo'!$G$17,M74,0)=\"EU-minimisääntelyä\",OFFSET('1_Velvoiteluettelo'!$G$17,M74,0)=\"Kansallista tai EU-minimin ylittävää sääntelyä\"),(M24+M25+M26)*M13*M15,IF(AND(ISBLANK(OFFSET('1_Velvoiteluettelo'!$G$17,M74,0)),M24+M25+M26>0),\"Täydennä sivu 1\",(-(M24+M25+M26)*M13*M15)))","v":0},null,{"$f":"SUM(I28:N28)","v":0}]
[]
[null,null,null,null,null,"B Yht","Toistuvat kustannukset yht kohdeyrityksille",null,{"$f":"I21+I28","v":0},{"$f":"J21+J28","v":0},{"$f":"K21+K28","v":0},{"$f":"L21+L28","v":0},{"$f":"M21+M28","v":0},null,{"$f":"SUM(I30:N30)","v":0}]
[]
[null,null,null,"C.","Kertaluonteiset kustannukset (1. vuosi)"]
[null,null,null,null,null,null,null,null,"Lain yritykselle aiheuttamat velvoitteet, joista suoria kustannuslisäyksiä tai velvoitteet, joiden purusta kustannussäästöjä"]
[]
[null,null,null,null,null,"C1","Kertaluonteiset henkilöstökustannukset",null,null,null,null,null,null,null,"Yhteensä"]
[null,null,null,null,null,null,"Kertaluontoinen henkilöstökustannus kaikille yrityksille yhteensä",null,{"$f":"OFFSET('2B_Työkustannus'!$F59,0,1*I74)","v":0},{"$f":"OFFSET('2B_Työkustannus'!$F59,0,1*J74)","v":0},{"$f":"OFFSET('2B_Työkustannus'!$F59,0,1*K74)","v":0},{"$f":"OFFSET('2B_Työkustannus'!$F59,0,1*L74)","v":0},{"$f":"OFFSET('2B_Työkustannus'!$F59,0,1*M74)","v":0},null,{"$f":"SUM(I36:N36)","v":0}]
[]
[null,null,null,null,null,"C2","Sääntelyn yritykselle aiheuttamat muut Kertaluonteiset kustannukset"]
[null,null,null,null,null,null,null,"Hankintakustannukset",0,0,0,0,0,null,{"$f":"SUM(I39:N39)","v":0}]
[null,null,null,null,null,null,null,"Välinekustannukset",0,0,0,0,0,null,{"$f":"SUM(I40:N40)","v":0}]
[null,null,null,null,null,null,null,"Muut kustannukset",0,0,0,0,0,null,{"$f":"SUM(I41:N41)","v":0}]
[null,null,null,null,null,null,null,"Kustannukset yhteensä per yritys",{"$f":"SUM(I39:I41)","v":0},{"$f":"SUM(J39:J41)","v":0},{"$f":"SUM(K39:K41)","v":0},{"$f":"SUM(L39:L41)","v":0},{"$f":"SUM(M39:M41)","v":0},null,{"$f":"SUM(I42:N42)","v":0}]
[null,null,null,null,null,null,"Kertaluonteiset muut kust. yht. kohdeyrityksille",null,{"$f":"IF(AND(ISBLANK(OFFSET('1_Velvoiteluettelo'!$G$17,I74,0)),I39+I40+I41>0),\"Täydennä sivu 1\",(SUM(I39:I41)))*I13","v":0},{"$f":"IF(AND(ISBLANK(OFFSET('1_Velvoiteluettelo'!$G$17,J74,0)),J39+J40+J41>0),\"Täydennä sivu 1\",(SUM(J39:J41)))*J13","v":0},{"$f":"IF(AND(ISBLANK(OFFSET('1_Velvoiteluettelo'!$G$17,K74,0)),K39+K40+K41>0),\"Täydennä sivu 1\",(SUM(K39:K41)))*K13","v":0},{"$f":"IF(AND(ISBLANK(OFFSET('1_Velvoiteluettelo'!$G$17,L74,0)),L39+L40+L41>0),\"Täydennä sivu 1\",(SUM(L39:L41)))*L13","v":0},{"$f":"IF(AND(ISBLANK(OFFSET('1_Velvoiteluettelo'!$G$17,M74,0)),M39+M40+M41>0),\"Täydennä sivu 1\",(SUM(M39:M41)))*M13","v":0},null,{"$f":"SUM(I43:N43)","v":0}]
[]
[null,null,null,null,null,"C Yht","Kertaluonteiset kust. yht. kohdeyrityksille",null,{"$f":"I43+I36","v":0},{"$f":"J43+J36","v":0},{"$f":"K43+K36","v":0},{"$f":"L43+L36","v":0},{"$f":"M43+M36","v":0},null,{"$f":"SUM(I45:N45)","v":0}]
[]
[]
[null,null,null,null,null,null,"Kirjoita tähän perustelut ja kuinka tiedot on hankittu, lähdeviittaukset."]
[]
[]
[]
[]
[]
[]
[]
[]
[]
[]
[]
[]
[]
[]
[]
[]
[]
[]
[]
[]
[]
[]
[]
[]
[null,null,null,null,null,null,null,null,"Apuruutuja, älä muuta"]
[null,null,null,null,null,null,null,null,0,{"$f":"I74+1","v":1},{"$f":"J74+1","v":2},{"$f":"K74+1","v":3},{"$f":"L74+1","v":4},{"$f":"M74+1","v":5}]

{"sheet":"4_Poikkeukset","index":5,"n_rows":35,"n_cols":8,"rows_kept":35,"cut":false,"hidden":false,"merged":[[5,2,5,3],[5,4,5,5],[15,1,21,7],[5,7,6,8]]}
[]
[null,"Poikkeus: kasvava tai supistuva yritysjoukko"]
[]
[null,"Käytä VAIN, mikäli on uskottavasti odotettavissa, että yritysjoukko, jota sääntely koskee, on merkittävästi joko kasvamassa tai supistumassa tulevaisuudessa"]
[]
[null,null,"Yritysjoukon kasvunopeus (%)",null,"Yritysten lukumäärä",null,null,{"$f":"IF(AND(SUM(C8:C13)=0,SUM(E8:E13)=SUM(F8:F13)),\"\",IF(ISBLANK(B16),\"Kirjoita perustelut!\",\"Ok!\"))","v":""}]
[null,null,"Vuodessa (täytä)","Kymmenessä vuodessa","Yrityksiä perusvuonna","Yrityksiä 10 vuoden päästä"]
[null,{"$f":"IF(ISTEXT('1_Velvoiteluettelo'!C17),'1_Velvoiteluettelo'!C17,'1_Velvoiteluettelo'!B17)","v":"Velvoite1"},0,{"$f":"((C8+1)^10)-1","v":0},{"$f":"OFFSET('3_Muut kustannukset'!$I$13,0,'1_Velvoiteluettelo'!S17-1)","v":0},{"$f":"E8+D8*E8","v":0}]
[null,{"$f":"IF(ISTEXT('1_Velvoiteluettelo'!C18),'1_Velvoiteluettelo'!C18,'1_Velvoiteluettelo'!B18)","v":"Velvoite2"},0,{"$f":"((C9+1)^10)-1","v":0},{"$f":"OFFSET('3_Muut kustannukset'!$I$13,0,'1_Velvoiteluettelo'!S18-1)","v":0},{"$f":"E9+D9*E9","v":0}]
[null,{"$f":"IF(ISTEXT('1_Velvoiteluettelo'!C19),'1_Velvoiteluettelo'!C19,'1_Velvoiteluettelo'!B19)","v":"Velvoite3"},0,{"$f":"((C10+1)^10)-1","v":0},{"$f":"OFFSET('3_Muut kustannukset'!$I$13,0,'1_Velvoiteluettelo'!S19-1)","v":0},{"$f":"E10+D10*E10","v":0}]
[null,{"$f":"IF(ISTEXT('1_Velvoiteluettelo'!C20),'1_Velvoiteluettelo'!C20,'1_Velvoiteluettelo'!B20)","v":"Velvoite4"},0,{"$f":"((C11+1)^10)-1","v":0},{"$f":"OFFSET('3_Muut kustannukset'!$I$13,0,'1_Velvoiteluettelo'!S20-1)","v":0},{"$f":"E11+D11*E11","v":0}]
[null,{"$f":"IF(ISTEXT('1_Velvoiteluettelo'!C21),'1_Velvoiteluettelo'!C21,'1_Velvoiteluettelo'!B21)","v":"Velvoite5"},0,{"$f":"((C12+1)^10)-1","v":0},{"$f":"OFFSET('3_Muut kustannukset'!$I$13,0,'1_Velvoiteluettelo'!S21-1)","v":0},{"$f":"E12+D12*E12","v":0}]
[]
[]
[null,"Perustelut (Miksi uskot yritysjoukon koon muuttuvan, lähdeviittaukset):"]
[]
[]
[]
[]
[]
[]
[]
[]
[]
[null,null,"Palaa takaisin tai siirry"]
[null,null,"Ohjeisiin"]
[null,null,"Tarkistuslistaan","Ohjeet ja tarkistuslista"]
[null,null,"Välilehdelle 1","Velvoiteluettelo"]
[null,null,"Välilehdelle 2","Työkustannukset"]
[null,null,"Välilehdelle 3","Muut kustannuksen ja kustannukset yhteensä"]
[null,null,"Välilehdelle 5","Yhteenveto"]
[null,null,"Apu2","Tehtäväkohtainen aika - apu hahmottamiseen"]
[null,null,"Apu3","Laite tms kustannuksista"]
[null,null,"Apu4","Yksinkertainen esimerkkilaskelma"]
[null,null,"Apu5","Tietolähteitä"]

{"sheet":"5_Yhteenveto","index":6,"n_rows":26,"n_cols":35,"rows_kept":26,"cut":false,"hidden":false,"merged":[[9,7,9,9],[5,7,5,9],[6,7,7,9],[8,7,8,9],[11,7,11,8],[23,1,23,4],[24,1,24,4],[25,5,25,6],[11,4,11,6],[4,1,8,6]]}
["Yhteenveto ja tiedot, jotka tulee kirjata hallituksen esitykseen"]
[]
["Ohjeet"]
[]
[null,"Tälle välilehdelle ei täytetä mitään tietoja.\nTämä välilehti kerää muilta välilehdiltä yhteenvedon kaikista velvoitteiden aiheuttamista kustannuslisäyksistä ja -säästöistä.\nVälilehdellä on myös eriteltynä nettokustannukset EU-sääntelystä ja kansallisesta sääntelystä.\nKatso kohdat, joihin on merkitty \"Kirjaa nämä hallituksen esitykseen\" ja kirjoita nämä auki HE:n yritysvaikutusarvioinnin alle. Huom. ao. luvut pyöristettyjä. Kirjoita HE:een noin numeroarvon eteen.\nKatso tarvittaessa myös oikeusminiteriön ohje vaikutusarvioinnin laatimisesta sekä TEM/TMO/SKY:n laatima ohjeistus. (Linkit ohessa)",null,null,null,null,null,"Lisäohjeita:"]
[null,null,null,null,null,null,null,"Oikeusministeriön ohje (2007:6) vaikutusarvioinnin laatimisesta"]
[null,null,null,null,null,null,null,"Ks. TEM:n tiedote (19.12.2017) Yksi yhdestä -periaatteen soveltamisen kokeiluhankkeesta. Tarvittaessa lisätietoja myös laskurin kehittäjiltä. Yhteystiedot Ohjeistus ja tarkistuslista -välilehdellä."]
[]
[null,null,null,null,null,null,null,"*Nettonykyarvo = Sääntelyn kustannusvaikutus yrityskentälle nykyhetkestä tulevaisuuteen mitattuna perusvuoden rahassa (rahan arvo laskee 4 % vuosivauhtia)"]
[null,"Lopuksi, lähetä laskelma tarkistettavaksi ja tallennettavaksi (TEM).",null,null,null,null,null,"*Nettonykyarvo vuositasolla = Sääntelyn keskimääräinen kustannusvaikutus vuositasolla lain voimassaolon ajan (oletus: 10 vuotta)"]
[]
["Yhteenveto velvoitekohtaisesti",null,null,null,"Kirjaa nämä hallituksen esitykseen!",null,null,"Laskennallisia eriä",null,null,null,"Kustannukset per yritys",null,null,null,"Tarkat, ei pyöristetyt arvot",null,null,null,null,"per yritys, tarkat, ei pyöristetyt arvot",null,null,null,null,null,"Apulaskuruutu: EU-sääntelyosan ja kansallisen osan erottaminen"]
["Velvoite-numero","Velvoitteen nimi","Sääntelyn luonne","Kuinka kauan voimassa?","Yritysten määrä (A)","Kertakustannus nykyrahassa (C) ","Toistuvat kustannukset (+) / säästöt (-) nykyrahassa (B)","Kustannusten ja säästöjen kokonaissumman nettonykyarvo*","Nettonykyarvo vuositasolla*","Kannustin lainvalmistelijalle",null,"Velvoitteen nimi","Kertakustannus nykyrahassa","Toistuvat kustannukset (+) / säästöt (-) nykyrahassa vuosittain",null,"Kertakustannus nykyrahassa (C) ","Toistuvat kustannukset (+) / säästöt (-) nykyrahassa (B)","Kustannusten ja säästöjen kokonaissumman nettonykyarvo*","Nettonykyarvo vuositasolla*",null,"Velvoitteen nimi","Kertakustannus nykyrahassa","Toistuvat kustannukset (+) / säästöt (-) nykyrahassa vuosittain",null,null,null,"NPV:n EU-osuus","NPV:n Kansallinen osuus","Jos EU, arvo=1","Jos kans., arvo=1",null,"Kerta- kustannusten EU-osuus","Toistuvien kustannusten EU-osuus","Kerta- kustannusten kans. osuus","Toistuvien kustannusten kans. osuus"]
[{"$f":"'1_Velvoiteluettelo'!B17","v":"Velvoite1"},{"$f":"IF(ISTEXT('1_Velvoiteluettelo'!C17),'1_Velvoiteluettelo'!C17,\"\")","v":""},{"$f":"IF(ISTEXT('1_Velvoiteluettelo'!G17),'1_Velvoiteluettelo'!G17,\"\")","v":""},{"$f":"'1_Velvoiteluettelo'!E17","v":"toistaiseksi"},{"$f":"IF(ISNUMBER(OFFSET('3_Muut kustannukset'!$I$13,0,AE14)),OFFSET('3_Muut kustannukset'!$I$13,0,AE14),(\"-\"))","v":0},{"$f":"IF(P14>0,IF(OR((P14=1000000),(P14<1000000)),MROUND(P14,1000),IF(P14<10000000,MROUND(P14,10000),MROUND(P14,100000))),IF(OR((ABS(P14)=1000000),(ABS(P14)<1000000)),MROUND(P14,-1000),IF(ABS(P14)<10000000,MROUND(P14,-10000),MROUND(P14,-100000))))","v":0},{"$f":"IF(Q14>0,IF(OR((Q14=1000000),(Q14<1000000)),MROUND(Q14,1000),IF(Q14<10000000,MROUND(Q14,10000),MROUND(Q14,100000))),IF(OR((ABS(Q14)=1000000),(ABS(Q14)<1000000)),MROUND(Q14,-1000),IF(ABS(Q14)<10000000,MROUND(Q14,-10000),MROUND(Q14,-100000))))","v":0},{"$f":"IF(R14>0,IF(OR((R14=100000),(R14<100000)),MROUND(R14,1000),IF(R14<1000000,MROUND(R14,10000),MROUND(R14,100000))),IF(OR((ABS(R14)=100000),(ABS(R14)<100000)),MROUND(R14,-1000),IF(ABS(R14)<1000000,MROUND(R14,-10000),MROUND(R14,-100000))))","v":0},{"$f":"IF(S14>0,IF(OR((S14=100000),(S14<100000)),MROUND(S14,1000),IF(S14<1000000,MROUND(S14,10000),MROUND(S14,100000))),IF(OR((ABS(S14)=100000),(ABS(S14)<100000)),MROUND(S14,-1000),IF(ABS(S14)<1000000,MROUND(S14,-10000),MROUND(S14,-100000))))","v":0},{"$f":"IF(ISBLANK('1_Velvoiteluettelo'!G17),\"\",IF(S14>0,\"Hae yrityksille säästöjä!\",\"Hyvä, yritysten sääntelytaakka ei kasva!\"))","v":""},null,{"$f":"IF(ISTEXT('1_Velvoiteluettelo'!C17),'1_Velvoiteluettelo'!C17,\"\")","v":""},{"$f":"IF(V14>0,IF(OR((V14=1000),(V14<1000)),MROUND(V14,10),IF(V14<100000,MROUND(V14,100),MROUND(V14,1000))),IF(OR((ABS(V14)=1000),(ABS(V14)<1000)),MROUND(V14,-10),IF(ABS(V14)<100000,MROUND(V14,-100),MROUND(V14,-1000))))","v":0},{"$f":"IF(W14>0,IF(OR((W14=1000),(W14<1000)),MROUND(W14,10),IF(W14<100000,MROUND(W14,100),MROUND(W14,1000))),IF(OR((ABS(W14)=1000),(ABS(W14)<1000)),MROUND(W14,-10),IF(ABS(W14)<100000,MROUND(W14,-100),MROUND(W14,-1000))))","v":0},null,{"$f":"OFFSET('3_Muut kustannukset'!I$45,0,AE14)","v":0},{"$f":"OFFSET('3_Muut kustannukset'!I$30,0,AE14)","v":0},{"$f":"OFFSET('Annualisoitu NPV'!$D$38,0,AE14)","v":0},{"$f":"OFFSET('Annualisoitu NPV'!$D$40,0,AE14)","v":0},null,{"$f":"IF(ISTEXT('1_Velvoiteluettelo'!C17),'1_Velvoiteluettelo'!C17,\"\")","v":""},{"$f":"IF(AND(NOT(E14=0),(ISNUMBER(E14))),P14/E14,\"0\")","v":"0"},{"$f":"IF(AND(NOT(E14=0),(ISNUMBER(E14))),Q14/E14,\"0\")","v":"0"},null,null,null,{"$f":"R14*AC14","v":0},{"$f":"R14*AD14","v":0},{"$f":"IF(OR(C14=\"EU-minimisääntelyä\",C14=\"EU:n velvoittamaa sääntelyn purkua\"),1,IF(ISBLANK(C14),\"\",0))","v":0},{"$f":"IF(OR(C14=\"EU-minimisääntelyä\",C14=\"EU:n velvoittamaa sääntelyn purkua\"),0,IF(ISBLANK(C14),\"\",1))","v":1},0,{"$f":"P14*$AC14","v":0},{"$f":"Q14*$AC14","v":0},{"$f":"P14*$AD14","v":0},{"$f":"Q14*$AD14","v":0}]
[{"$f":"'1_Velvoiteluettelo'!B18","v":"Velvoite2"},{"$f":"IF(ISTEXT('1_Velvoiteluettelo'!C18),'1_Velvoiteluettelo'!C18,\"\")","v":""},{"$f":"IF(ISTEXT('1_Velvoiteluettelo'!G18),'1_Velvoiteluettelo'!G18,\"\")","v":""},{"$f":"'1_Velvoiteluettelo'!E18","v":"toistaiseksi"},{"$f":"IF(ISNUMBER(OFFSET('3_Muut kustannukset'!$I$13,0,AE15)),OFFSET('3_Muut kustannukset'!$I$13,0,AE15),(\"-\"))","v":0},{"$f":"IF(P15>0,IF(OR((P15=1000000),(P15<1000000)),MROUND(P15,1000),IF(P15<10000000,MROUND(P15,10000),MROUND(P15,100000))),IF(OR((ABS(P15)=1000000),(ABS(P15)<1000000)),MROUND(P15,-1000),IF(ABS(P15)<10000000,MROUND(P15,-10000),MROUND(P15,-100000))))","v":0},{"$f":"IF(Q15>0,IF(OR((Q15=1000000),(Q15<1000000)),MROUND(Q15,1000),IF(Q15<10000000,MROUND(Q15,10000),MROUND(Q15,100000))),IF(OR((ABS(Q15)=1000000),(ABS(Q15)<1000000)),MROUND(Q15,-1000),IF(ABS(Q15)<10000000,MROUND(Q15,-10000),MROUND(Q15,-100000))))","v":0},{"$f":"IF(R15>0,IF(OR((R15=100000),(R15<100000)),MROUND(R15,1000),IF(R15<1000000,MROUND(R15,10000),MROUND(R15,100000))),IF(OR((ABS(R15)=100000),(ABS(R15)<100000)),MROUND(R15,-1000),IF(ABS(R15)<1000000,MROUND(R15,-10000),MROUND(R15,-100000))))","v":0},{"$f":"IF(S15>0,IF(OR((S15=100000),(S15<100000)),MROUND(S15,1000),IF(S15<1000000,MROUND(S15,10000),MROUND(S15,100000))),IF(OR((ABS(S15)=100000),(ABS(S15)<100000)),MROUND(S15,-1000),IF(ABS(S15)<1000000,MROUND(S15,-10000),MROUND(S15,-100000))))","v":0},{"$f":"IF(ISBLANK('1_Velvoiteluettelo'!G18),\"\",IF(I15>0,\"Hae yrityksille säästöjä!\",\"Hyvä, yritysten sääntelytaakka ei kasva!\"))","v":""},null,{"$f":"IF(ISTEXT('1_Velvoiteluettelo'!C18),'1_Velvoiteluettelo'!C18,\"\")","v":""},{"$f":"IF(V15>0,IF(OR((V15=1000),(V15<1000)),MROUND(V15,10),IF(V15<100000,MROUND(V15,100),MROUND(V15,1000))),IF(OR((ABS(V15)=1000),(ABS(V15)<1000)),MROUND(V15,-10),IF(ABS(V15)<100000,MROUND(V15,-100),MROUND(V15,-1000))))","v":0},{"$f":"IF(W15>0,IF(OR((W15=1000),(W15<1000)),MROUND(W15,10),IF(W15<100000,MROUND(W15,100),MROUND(W15,1000))),IF(OR((ABS(W15)=1000),(ABS(W15)<1000)),MROUND(W15,-10),IF(ABS(W15)<100000,MROUND(W15,-100),MROUND(W15,-1000))))","v":0},null,{"$f":"OFFSET('3_Muut kustannukset'!I$45,0,AE15)","v":0},{"$f":"OFFSET('3_Muut kustannukset'!I$30,0,AE15)","v":0},{"$f":"OFFSET('Annualisoitu NPV'!$D$38,0,AE15)","v":0},{"$f":"OFFSET('Annualisoitu NPV'!$D$40,0,AE15)","v":0},null,{"$f":"IF(ISTEXT('1_Velvoiteluettelo'!C18),'1_Velvoiteluettelo'!C18,\"\")","v":""},{"$f":"IF(AND(NOT(E15=0),(ISNUMBER(E15))),P15/E15,\"0\")","v":"0"},{"$f":"IF(AND(NOT(E15=0),(ISNUMBER(E15))),Q15/E15,\"0\")","v":"0"},null,null,null,{"$f":"R15*AC15","v":0},{"$f":"R15*AD15","v":0},{"$f":"IF(OR(C15=\"EU-minimisääntelyä\",C15=\"EU:n velvoittamaa sääntelyn purkua\"),1,IF(ISBLANK(C15),\"\",0))","v":0},{"$f":"IF(OR(C15=\"EU-minimisääntelyä\",C15=\"EU:n velvoittamaa sääntelyn purkua\"),0,IF(ISBLANK(C15),\"\",1))","v":1},{"$f":"AE14+1","v":1},{"$f":"P15*$AC15","v":0},{"$f":"Q15*$AC15","v":0},{"$f":"P15*$AD15","v":0},{"$f":"Q15*$AD15","v":0}]
[{"$f":"'1_Velvoiteluettelo'!B19","v":"Velvoite3"},{"$f":"IF(ISTEXT('1_Velvoiteluettelo'!C19),'1_Velvoiteluettelo'!C19,\"\")","v":""},{"$f":"IF(ISTEXT('1_Velvoiteluettelo'!G19),'1_Velvoiteluettelo'!G19,\"\")","v":""},{"$f":"'1_Velvoiteluettelo'!E19","v":"toistaiseksi"},{"$f":"IF(ISNUMBER(OFFSET('3_Muut kustannukset'!$I$13,0,AE16)),OFFSET('3_Muut kustannukset'!$I$13,0,AE16),(\"-\"))","v":0},0,0,0,0,{"$f":"IF(ISBLANK('1_Velvoiteluettelo'!G19),\"\",IF(I16>0,\"Hae yrityksille säästöjä!\",\"Hyvä, yritysten sääntelytaakka ei kasva!\"))","v":""},null,{"$f":"IF(ISTEXT('1_Velvoiteluettelo'!C19),'1_Velvoiteluettelo'!C19,\"\")","v":""},0,0,null,{"$f":"OFFSET('3_Muut kustannukset'!I$45,0,AE16)","v":0},{"$f":"OFFSET('3_Muut kustannukset'!I$30,0,AE16)","v":0},{"$f":"OFFSET('Annualisoitu NPV'!$D$38,0,AE16)","v":0},{"$f":"OFFSET('Annualisoitu NPV'!$D$40,0,AE16)","v":0},null,{"$f":"IF(ISTEXT('1_Velvoiteluettelo'!C19),'1_Velvoiteluettelo'!C19,\"\")","v":""},"0","0",null,null,null,0,0,{"$f":"IF(OR(C16=\"EU-minimisääntelyä\",C16=\"EU:n velvoittamaa sääntelyn purkua\"),1,IF(ISBLANK(C16),\"\",0))","v":0},{"$f":"IF(OR(C16=\"EU-minimisääntelyä\",C16=\"EU:n velvoittamaa sääntelyn purkua\"),0,IF(ISBLANK(C16),\"\",1))","v":1},{"$f":"AE15+1","v":2},0,0,0,0]
[{"$f":"'1_Velvoiteluettelo'!B20","v":"Velvoite4"},{"$f":"IF(ISTEXT('1_Velvoiteluettelo'!C20),'1_Velvoiteluettelo'!C20,\"\")","v":""},{"$f":"IF(ISTEXT('1_Velvoiteluettelo'!G20),'1_Velvoiteluettelo'!G20,\"\")","v":""},{"$f":"'1_Velvoiteluettelo'!E20","v":"toistaiseksi"},{"$f":"IF(ISNUMBER(OFFSET('3_Muut kustannukset'!$I$13,0,AE17)),OFFSET('3_Muut kustannukset'!$I$13,0,AE17),(\"-\"))","v":0},0,0,0,0,{"$f":"IF(ISBLANK('1_Velvoiteluettelo'!G20),\"\",IF(I17>0,\"Hae yrityksille säästöjä!\",\"Hyvä, yritysten sääntelytaakka ei kasva!\"))","v":""},null,{"$f":"IF(ISTEXT('1_Velvoiteluettelo'!C20),'1_Velvoiteluettelo'!C20,\"\")","v":""},0,0,null,{"$f":"OFFSET('3_Muut kustannukset'!I$45,0,AE17)","v":0},{"$f":"OFFSET('3_Muut kustannukset'!I$30,0,AE17)","v":0},{"$f":"OFFSET('Annualisoitu NPV'!$D$38,0,AE17)","v":0},{"$f":"OFFSET('Annualisoitu NPV'!$D$40,0,AE17)","v":0},null,{"$f":"IF(ISTEXT('1_Velvoiteluettelo'!C20),'1_Velvoiteluettelo'!C20,\"\")","v":""},"0","0",null,null,null,0,0,{"$f":"IF(OR(C17=\"EU-minimisääntelyä\",C17=\"EU:n velvoittamaa sääntelyn purkua\"),1,IF(ISBLANK(C17),\"\",0))","v":0},{"$f":"IF(OR(C17=\"EU-minimisääntelyä\",C17=\"EU:n velvoittamaa sääntelyn purkua\"),0,IF(ISBLANK(C17),\"\",1))","v":1},{"$f":"AE16+1","v":3},0,0,0,0]
[{"$f":"'1_Velvoiteluettelo'!B21","v":"Velvoite5"},{"$f":"IF(ISTEXT('1_Velvoiteluettelo'!C21),'1_Velvoiteluettelo'!C21,\"\")","v":""},{"$f":"IF(ISTEXT('1_Velvoiteluettelo'!G21),'1_Velvoiteluettelo'!G21,\"\")","v":""},{"$f":"'1_Velvoiteluettelo'!E21","v":"toistaiseksi"},{"$f":"IF(ISNUMBER(OFFSET('3_Muut kustannukset'!$I$13,0,AE18)),OFFSET('3_Muut kustannukset'!$I$13,0,AE18),(\"-\"))","v":0},{"$f":"IF(P18>0,IF(OR((P18=1000000),(P18<1000000)),MROUND(P18,1000),IF(P18<10000000,MROUND(P18,10000),MROUND(P18,100000))),IF(OR((ABS(P18)=1000000),(ABS(P18)<1000000)),MROUND(P18,-1000),IF(ABS(P18)<10000000,MROUND(P18,-10000),MROUND(P18,-100000))))","v":0},0,0,0,{"$f":"IF(ISBLANK('1_Velvoiteluettelo'!G21),\"\",IF(I18>0,\"Hae yrityksille säästöjä!\",\"Hyvä, yritysten sääntelytaakka ei kasva!\"))","v":""},null,{"$f":"IF(ISTEXT('1_Velvoiteluettelo'!C21),'1_Velvoiteluettelo'!C21,\"\")","v":""},{"$f":"IF(V18>0,IF(OR((V18=1000),(V18<1000)),MROUND(V18,10),IF(V18<100000,MROUND(V18,100),MROUND(V18,1000))),IF(OR((ABS(V18)=1000),(ABS(V18)<1000)),MROUND(V18,-10),IF(ABS(V18)<100000,MROUND(V18,-100),MROUND(V18,-1000))))","v":0},0,null,{"$f":"OFFSET('3_Muut kustannukset'!I$45,0,AE18)","v":0},{"$f":"OFFSET('3_Muut kustannukset'!I$30,0,AE18)","v":0},{"$f":"OFFSET('Annualisoitu NPV'!$D$38,0,AE18)","v":0},{"$f":"OFFSET('Annualisoitu NPV'!$D$40,0,AE18)","v":0},null,{"$f":"IF(ISTEXT('1_Velvoiteluettelo'!C21),'1_Velvoiteluettelo'!C21,\"\")","v":""},{"$f":"IF(AND(NOT(E18=0),(ISNUMBER(E18))),P18/E18,\"0\")","v":"0"},"0",null,null,null,0,0,{"$f":"IF(OR(C18=\"EU-minimisääntelyä\",C18=\"EU:n velvoittamaa sääntelyn purkua\"),1,IF(ISBLANK(C18),\"\",0))","v":0},{"$f":"IF(OR(C18=\"EU-minimisääntelyä\",C18=\"EU:n velvoittamaa sääntelyn purkua\"),0,IF(ISBLANK(C18),\"\",1))","v":1},{"$f":"AE17+1","v":4},0,0,0,0]
[null,null,null,null,null,null,null,null,null,null,null,null,null,null,null,null,null,null,null,null,null,null,null,null,null,null,null,null,null,null,{"$f":"AE18+1","v":5}]
["Yhteensä",null,null,null,{"$f":"IF(ISNUMBER('1_Velvoiteluettelo'!D15),'1_Velvoiteluettelo'!D15,MAX(E14:E19))","v":0},{"$f":"IF(P20>0,IF(OR((P20=1000000),(P20<1000000)),MROUND(P20,1000),IF(P20<10000000,MROUND(P20,10000),MROUND(P20,100000))),IF(OR((ABS(P20)=1000000),(ABS(P20)<1000000)),MROUND(P20,-1000),IF(ABS(P20)<10000000,MROUND(P20,-10000),MROUND(P20,-100000))))","v":0},{"$f":"IF(Q20>0,IF(OR((Q20=1000000),(Q20<1000000)),MROUND(Q20,1000),IF(Q20<10000000,MROUND(Q20,10000),MROUND(Q20,100000))),IF(OR((ABS(Q20)=1000000),(ABS(Q20)<1000000)),MROUND(Q20,-1000),IF(ABS(Q20)<10000000,MROUND(Q20,-10000),MROUND(Q20,-100000))))","v":0},{"$f":"IF(R20>0,IF(OR((R20=1000000),(R20<1000000)),MROUND(R20,1000),IF(R20<10000000,MROUND(R20,10000),MROUND(R20,100000))),IF(OR((ABS(R20)=1000000),(ABS(R20)<1000000)),MROUND(R20,-1000),IF(ABS(R20)<10000000,MROUND(R20,-10000),MROUND(R20,-100000))))","v":0},{"$f":"IF(S20>0,IF(OR((S20=1000000),(S20<1000000)),MROUND(S20,1000),IF(S20<10000000,MROUND(S20,10000),MROUND(S20,100000))),IF(OR((ABS(S20)=1000000),(ABS(S20)<1000000)),MROUND(S20,-1000),IF(ABS(S20)<10000000,MROUND(S20,-10000),MROUND(S20,-100000))))","v":0},{"$f":"IF(NOT(I20=0),IF(I20>0,\"HAE YRITYKSILLE SÄÄSTÖJÄ!\",\"HYVÄ, YRITYSTEN SÄÄNTELYTAAKKA EI KASVA!\"),\"\")","v":""},null,"Yht. keskimäärin",{"$f":"IF(V20>0,IF(OR((V20=1000),(V20<1000)),MROUND(V20,10),IF(V20<100000,MROUND(V20,100),MROUND(V20,1000))),IF(OR((ABS(V20)=1000),(ABS(V20)<1000)),MROUND(V20,-10),IF(ABS(V20)<100000,MROUND(V20,-100),MROUND(V20,-1000))))","v":0},{"$f":"IF(W20>0,IF(OR((W20=1000),(W20<1000)),MROUND(W20,10),IF(W20<100000,MROUND(W20,100),MROUND(W20,1000))),IF(OR((ABS(W20)=1000),(ABS(W20)<1000)),MROUND(W20,-10),IF(ABS(W20)<100000,MROUND(W20,-100),MROUND(W20,-1000))))","v":0},null,{"$f":"SUM(P14:P19)","v":0},{"$f":"SUM(Q14:Q19)","v":0},{"$f":"'Annualisoitu NPV'!$J$38","v":0},{"$f":"'Annualisoitu NPV'!$J$40","v":0},null,"Yht. keskimäärin",{"$f":"IF(AND(NOT(E20=0),(ISNUMBER(E20))),F20/E20,\"0\")","v":"0"},{"$f":"IF(AND(NOT(E20=0),(ISNUMBER(E20))),G20/E20,\"0\")","v":"0"},null,null,null,{"$f":"SUM(AA14:AA19)","v":0},{"$f":"SUM(AB14:AB19)","v":0},null,null,null,{"$f":"SUM(AF14:AF19)","v":0},{"$f":"SUM(AG14:AG19)","v":0},{"$f":"SUM(AH14:AH19)","v":0},{"$f":"SUM(AI14:AI19)","v":0}]
[]
[null,"Kustannuslisäyksen / -säästön erittely EU-sääntelyn osalta ja kansallisen sääntelyn osalta",null,null,null,null,null,null,null,null,null,null,null,null,null,"Tarkat, ei pyöristetyt arvot"]
[null,null,null,null,null,"Kertakustannus nykyrahassa","Toistuvat kustannukset (+) / säästöt (-) nykyrahassa","Kustannusten ja säästöjen kokonaissumman nettonykyarvo*","Nettonykyarvo vuositasolla*","Kustannus vai kustannussäästö?",null,null,null,null,null,null,null,"Kustannusten ja säästöjen kokonaissumman nettonykyarvo*","Nettonykyarvo vuositasolla*"]
[null,"EU-sääntelyn kustannusvaikutus yrityksille:",null,null,null,{"$f":"IF(AF20>0,IF(OR((AF20=1000000),(AF20<1000000)),MROUND(AF20,1000),IF(AF20<10000000,MROUND(AF20,10000),MROUND(AF20,100000))),IF(OR((ABS(AF20)=1000000),(ABS(AF20)<1000000)),MROUND(AF20,-1000),IF(ABS(AF20)<10000000,MROUND(AF20,-10000),MROUND(AF20,-100000))))","v":0},{"$f":"IF(AG20>0,IF(OR((AG20=1000000),(AG20<1000000)),MROUND(AG20,1000),IF(AG20<10000000,MROUND(AG20,10000),MROUND(AG20,100000))),IF(OR((ABS(AG20)=1000000),(ABS(AG20)<1000000)),MROUND(AG20,-1000),IF(ABS(AG20)<10000000,MROUND(AG20,-10000),MROUND(AG20,-100000))))","v":0},{"$f":"IF(R24>0,IF(OR((R24=100000),(R24<100000)),MROUND(R24,1000),IF(R24<1000000,MROUND(R24,10000),MROUND(R24,100000))),IF(OR((ABS(R24)=100000),(ABS(R24)<100000)),MROUND(R24,-1000),IF(ABS(R24)<1000000,MROUND(R24,-10000),MROUND(R24,-100000))))","v":0},{"$f":"IF(S24>0,IF(OR((S24=100000),(S24<100000)),MROUND(S24,1000),IF(S24<1000000,MROUND(S24,10000),MROUND(S24,100000))),IF(OR((ABS(S24)=100000),(ABS(S24)<100000)),MROUND(S24,-1000),IF(ABS(S24)<1000000,MROUND(S24,-10000),MROUND(S24,-100000))))","v":0},{"$f":"IF(H24>0,\"KUSTANNUS YRITYKSILLE\",IF(H24<0,\"SÄÄSTÖÄ YRITYKSILLE\",\"\"))","v":""},null,null,null,null,null,"EU-sääntely",null,{"$f":"AA20","v":0},{"$f":"(AA20*'Annualisoitu NPV'!$D$24)/(1-(1+'Annualisoitu NPV'!$D$24)^(-10))","v":0}]
[null,"Kansallisen sääntelyn kustannusvaikutus yrityksille:",null,null,null,{"$f":"IF(AH20>0,IF(OR((AH20=1000000),(AH20<1000000)),MROUND(AH20,1000),IF(AH20<10000000,MROUND(AH20,10000),MROUND(AH20,100000))),IF(OR((ABS(AH20)=1000000),(ABS(AH20)<1000000)),MROUND(AH20,-1000),IF(ABS(AH20)<10000000,MROUND(AH20,-10000),MROUND(AH20,-100000))))","v":0},{"$f":"IF(AI20>0,IF(OR((AI20=1000000),(AI20<1000000)),MROUND(AI20,1000),IF(AI20<1000000,MROUND(AI20,10000),MROUND(AI20,100000))),IF(OR((ABS(AI20)=1000000),(ABS(AI20)<1000000)),MROUND(AI20,-1000),IF(ABS(AI20)<1000000,MROUND(AI20,-10000),MROUND(AI20,-100000))))","v":0},{"$f":"IF(R25>0,IF(OR((R25=100000),(R25<100000)),MROUND(R25,1000),IF(R25<1000000,MROUND(R25,10000),MROUND(R25,100000))),IF(OR((ABS(R25)=100000),(ABS(R25)<100000)),MROUND(R25,-1000),IF(ABS(R25)<1000000,MROUND(R25,-10000),MROUND(R25,-100000))))","v":0},{"$f":"IF(S25>0,IF(OR((S25=100000),(S25<100000)),MROUND(S25,1000),IF(S25<1000000,MROUND(S25,10000),MROUND(S25,100000))),IF(OR((ABS(S25)=100000),(ABS(S25)<100000)),MROUND(S25,-1000),IF(ABS(S25)<1000000,MROUND(S25,-10000),MROUND(S25,-100000))))","v":0},{"$f":"IF(H25>0,\"KUSTANNUS YRITYKSILLE\",IF(H25<0,\"SÄÄSTÖÄ YRITYKSILLE\",\"\"))","v":""},null,null,null,null,null,"Kansallinen",null,{"$f":"AB20","v":0},{"$f":"(AB20*'Annualisoitu NPV'!$D$24)/(1-(1+'Annualisoitu NPV'!$D$24)^(-10))","v":0}]
[null,null,null,null,null,"Kirjaa nämä hallituksen esitykseen!"]

{"sheet":"Apu2_Aika per tehtävä","index":7,"n_rows":36,"n_cols":16,"rows_kept":36,"cut":false,"hidden":false,"merged":[[7,1,7,16],[5,1,5,16],[4,1,4,16],[3,1,3,16],[33,12,33,14],[6,1,6,16],[11,1,13,1],[11,4,11,15],[11,2,13,2],[11,3,13,3],[8,1,8,16]]}
["Aputaulukko 2 - lain edellyttämän tehtävän suorittamiseen kuluva aika vuodessa"]
["Perustuu standardikustannusmallin (SCM) mukaiseen arviointiin (ks. OM 2007:6 ja SCM Network)"]
["Ohjeet:"]
["1 )","Sääntelytaakan laskennan perustekijänä on se työaika, jonka joku tai jotkut yrityksen työntekijöistä joutuu/joutuvat käyttämään lain edellyttämän tehtävän suorittamiseen (esim. jonkin asian ilmoittaminen viranomaiselle). Vaihtoehtoisesti yritys voi myös ulkoistaa jonkin tehtävän (esim. tilintarkastus), jolloin ulkoistuskustannus lasketaan muiden kustannusten yhteydessä (välilehti 3_Muut kustannukset)."]
["2 )","Tätä välilehteä voit käyttää apuna arvioidessasi lain edellyttämään tehtävään käytettävää kokonaisaikaa."]
["3 )","Tietoa tai arviota lain edellyttämän tehtävän vaatimasta työajasta voi kysyä esimerkiksi lakia valmistelevan työryhmän jäseniltä, toimialayhdistyksiltä, toimialan sääntelyviranomaiselta tai suoraan yrityksiltä."]
["4 )","Ensin voi arvioida paljonko käytetty aika on tehtäväkohtaisesti (tehtävän kesto per yksi tehtäväkerta) ja tämän jälkeen taulukosta voi katsoa kokonaisajan riippuen siitä, kuinka monta kertaa vuodessa laki edellyttää tehtävän suorittamisen (frekvenssi)."]
["5 )","Alla olevan taulukon avulla voi myös arvioida sitä, 1) kuinka paljon suurempi kustannus yrityksille aiheutuu, jos esim. jokin ilmoitusvelvollisuus on neljästi vuodessa sen sijaan, että se olisi vain kerran vuodessa tai 2) onko jokin ilmoitusvelvollisuus ylipäätään tarpeen lain tavoitteiden saavuttamiseksi (kustannus-hyöty-analyysi per lain yrityksille asettama velvoite)."]
["6 )","Tieto tai paras mahdollinen arvio tehtävään käytettävästä ajasta syötetään laskelmaan tämän taulukon välilehdelle 2B_Työkustannus."]
[]
[]
[null,"Kuinka usein lain edellyttämä tehtävä tulee suorittaa","Kuinka monta kertaa vuodessa tehtävä suoritetaan (frekvenssi)","Aika tunteina","Tehtävän kesto per yksi tehtäväkerta"]
[null,null,null,null,"1 min","15 min","30 min","1 tunti","2 tuntia","3 tuntia","…","1 työpäivää","2 työpäivää","3 työpäivää","4 työpäivää","5 työpäivää"]
[null,null,null,null,{"$f":"1/60","v":1.6666666666666666E-2},0.25,0.5,1,2,3,null,{"$f":"'2B_Työkustannus'!E80","v":7.5780000000000003},{"$f":"2*L14","v":15.156000000000001},{"$f":"3*$L$14","v":22.734000000000002},{"$f":"4*$L$14","v":30.312000000000001},{"$f":"5*$L$14","v":37.89}]
[null,"joka päivä",365,null,{"$f":"$C15*E$14","v":6.083333333333333},{"$f":"$C15*F$14","v":91.25},182.5,365,730,1095,null,{"$f":"$C15*L$14","v":2765.9700000000003},"-","-","-","-"]
[null,"joka viikko",52,null,0.8666666666666667,13,26,52,104,156,null,{"$f":"$C16*L$14","v":394.05600000000004},788.11200000000008,1182.1680000000001,1576.2240000000002,1970.28]
[null,"kerran kuukaudessa",12,null,0.2,3,6,12,24,36,null,90.936000000000007,181.87200000000001,272.80799999999999,363.74400000000003,454.68]
[null,"neljä kertaa vuodessa",4,null,6.6666666666666666E-2,1,2,4,8,12,null,30.312000000000001,60.624000000000002,90.936000000000007,121.248,151.56]
[null,"kaksi kertaa vuodessa",2,null,3.3333333333333333E-2,0.5,1,2,4,6,null,15.156000000000001,30.312000000000001,45.468000000000004,60.624000000000002,75.78]
[null,"kerran vuodessa",1,null,1.6666666666666666E-2,0.25,0.5,1,2,3,null,7.5780000000000003,15.156000000000001,22.734000000000002,30.312000000000001,37.89]
[]
[]
[null,"Alla esimerkki, jossa"]
[null,"yrityksen työntekijät laativat ja toimittavat TUKESille kaivoslain edellyttämän kaivoskartan. Oletuksena on, että yrityksiltä saatujen tietojen mukaan keskimäärin ",null,null,null,null,null,null,null,null,"Tämä vain esimerkinomaisesti."]
[null,"- asiantuntijalta kuluu kartan laatimiseen 2 työpäivää (15,16 tuntia) ja ",null,null,null,null,null,null,null,null,"Tämä vain esimerkinomaisesti."]
[null,"- asiantuntijan apuna on avustaja, joka käyttää tehtävään puoli tuntia (0,5 h) ja",null,null,null,null,null,null,null,null,"Tämä vain esimerkinomaisesti."]
[null,"- johtaja tarkistaa ja hyväksyy laaditun kartan, johon kuluu 15 minuttia (0,25 h)",null,null,null,null,null,null,null,null,"Tämä vain esimerkinomaisesti."]
[null,"Lain mukaan kartta pitää toimittaa TUKESille kahdesti vuodessa (2 kertaa)",null,null,null,null,null,null,null,null,"Tämä vain esimerkinomaisesti."]
[null,"Siten laskelmaan merkittäisiin välilehdelle \"2B_Työkustannus\", Frekvenssi = 2, Johtajalle 0,25 tuntia, Asiantuntijalle 15,16 tuntia ja Avustajalle 0,5 tuntia",null,null,null,null,null,null,null,null,"Tämä vain esimerkinomaisesti."]
[null,"Laskentapohja laskee näistä keskimääräisen tuntipalkan ja lisää siihen palkan sivukulut sekä yleiskulun.",null,null,null,null,null,null,null,null,"Tämä vain esimerkinomaisesti."]
[]
[null,"Esimerkki ja apulaskupohja (tämä vain tarvittaessa esimerkkinä, täytä yritysvaikutusarvioinnin tiedot välilehdelle 2B_Työkustannus)"]
[]
[null,null,null,null,"Työntekijä 1",null,"Työntekijä 2",null,"Työntekijä 3",null,null,null,"Tehtävään käytetty työaika yhteensä"]
[null,null,"Tehtävä","Tehtävän kuvaus (välilehdeltä '1_Tehtäväluettelo')","Tyypillisesti tehtävän hoitaa (Työntekijä 1)","Työntekijän 1 tehtävään käyttämä aika (h)","Tyypillisesti tehtävässä avustaa (Työntekijä 2)","Työntekijän 2 tehtävään käyttämä aika (h)","Tyypillisesti tehtävää ohjaa/tarkistaa (Työntekijä 3)","Työntekijän 2 tehtävään käyttämä aika (h)","Lisää tarvittaessa työntekijöitä","Kuinka monta kertaa vuodessa tehtävä suoritetaan (frekvenssi)","Työntekijä 1","Työntekijä 2","Työntekijä 3"]
[null,"Esimerkki","Tehtävä1","Kaivoskartan laatiminen ja toimittaminen TUKESille","Asiantuntija",15.16,"Avustaja",0.5,"Johtaja",0.25,null,2,{"$f":"$L$36*F36","v":30.32},{"$f":"$L$36*H36","v":1},{"$f":"$L$36*J36","v":0.5}]

{"sheet":"Apu3_Laite tms kustannuksista","index":8,"n_rows":21,"n_cols":7,"rows_kept":21,"cut":false,"hidden":false,"merged":[[5,0,5,2],[19,0,21,2],[2,4,3,9],[20,4,21,9],[5,4,5,9]]}
["Aputaulukko 3 - Lain edellyttämien hankintojen kustannuslaskennasta"]
[]
["Edellyttääkö laki jonkin järjestelmän, ohjelmiston tai laitteen hankkimista tai päivittämistä?",null,null,null,"Kysy kohdejoukolta (yritykset, toimialajärjestö) miten näkevät nämä kustannuserät ja miten voisi tarvittaessa saada tarkempaa tietoa/arviota näistä."]
["Jos kyllä, niin käytä apuna lain aiheuttamien kustannusten arvioinnissa seuraavaa:"]
[]
["Jonkin järjestelmän, laitteen tms. (esim. maksupääte) hankkiminen voi aiheuttaa myös muita kustannuksia kuin itse laitteen. Kokonaiskustannusten arvioinnissa voi soveltaa ICT-hankinnoissa vakiintunutta omistamisen kokonaiskustannuksen laskentamallia - Total Cost of Ownership (TCO). ",null,null,null,"Sovella tarvittaessa muihinkin kuin IT-hankintoihin"]
[]
["Kokonaiskustannuksiin lasketaan mukaan lähtökohtaisesti seuraavat:",null,null,null,"Esimerkki","eur/vuosi/yritys","Kustannuserän toistuvuus"]
[1,"Laitteen (hardware) hankinta",null,null,"Laite",250,"kertaluonteinen"]
[2,"Ohjelmiston (software) hankinta",null,null,"Ohjelmisto",100,"kertaluonteinen"]
[3,"Asennus",null,null,"Asennus",1000,"kertaluonteinen"]
[4,"Johtaminen ja tuki ",null,null,"Johtaminen ja tuki",6000,"toistuva yhteensä vuodessa "]
[5,"Tietoliikenneyhteydet",null,null,"Tietoliikenneyhteydet",{"$f":"20*12","v":240},"toistuva yhteensä vuodessa "]
[6,"Käyttäjäkustannukset",null,null,"Käyttäjäkustannukset",0,"toistuva yhteensä vuodessa "]
[null,"Vaihtoehtoiskustannukset"]
[7,null,"järjestelmän alhaallaoloajalle (downtime)",null,"Alhaallaoloaika",520,"Toistuva"]
[8,null,"koulutukselle",null,"Koulutus",140,"Kertaluonteinen"]
[9,null,"muulle resurssille, joka on pois tuotannosta",null,"Muu",0]
[null,null,null,null,"Yhteensä 1. vuosi",{"$f":"SUM(F9:F18)","v":8250},"Kertaluonteiset + toistuvat 1. vuodelta"]
["Toisaalta laite tai järjestelmä (esim. maksupääte) voi olla käytössä joka tapauksessa (business as usual). Tällöin hankinnasta tulee kohdistaa kustannuksiin vain se osa, joka arvioidaan johtuvan nimenomaan lain velvoitteista, esimerkiksi 1 % kokonaisuudesta tai 10 %, 20 %, ... jne. tilanteen edellyttämällä tavalla.",null,null,null,"Yhteensä seuraavat vuodet",{"$f":"F12+F13+F16","v":6760},"Toistuvat yhteensä"]
[null,null,null,null,"Huomion kiinnittäminen laitehankinnasta henkilöstökuluihin. Huom. esimerkkilaskelmassa on valittu tarkoituksella tilanne, jossa itse laite- tms. hankinta on pieni, mutta henkilöstökuluina syntyy vuosittain merkittävä kustannus. "]

{"sheet":"Apu4_Yksinkert. esim. laskelma","index":9,"n_rows":107,"n_cols":16,"rows_kept":107,"cut":false,"hidden":false,"merged":[[57,1,69,1],[20,4,20,13],[21,4,21,13],[8,4,8,13],[9,4,9,13],[10,4,10,13],[11,4,11,13],[15,4,15,13]]}
["Yksinkertaistettu esimerkkilaskelma - VAIN ESIMERKINLUONTEINEN LASKELMA KOKONAISUUDEN HAHMOTTAMISEKSI"]
["Perustuu standardikustannusmallin (SCM) mukaiseen arviointiin (ks. OM 2007:6 ja SCM Network)"]
[]
[null,"Oletuksena velvoite, jonka hoitaa Asiantuntija (kuukausipalkka 3600 eur/kk)"]
[null,"Esim. jokin ilmoitus kvartaaleittain, johon kuluu á 2 tuntia"]
[null,"Toimialalla 400 yritystä"]
[null,"Lisäksi ensimmäisenä vuonna jokaiselle yritykselle aiheutuu kertaluontoinen 1000 euron koulutuskustannus."]
[]
[null,"Laskentatekijä","Arvo","Yksikkö","Selite, huomautus"]
[null,"Vuodessa velvoitteeseen käytetyt tunnit",8,"tuntia","Tehtävä 4 x á 2h = 8h. Ts. Frekvenssi = 4 ja asiantuntijan työtunnit 2,0h per kerta. Nämä syötetään välilehdelle 2."]
[null,"Tuntipalkkakustannus sivu- ja yleiskuluineen",34.46,"euroa","Saat tämän taulukon välilehden 2 avulla, kun syötät asiantuntijan kohdalle 2 tuntia (muut 0)"]
[null,"Työntekijäkustannus vuodessa",275.70719067156102,"euroa","Tämä näkyy välilehden 2 alaosassa. Laskee automaattisesti heti, kun olet syöttänyt em. tuntimäärän välilehdelle 2"]
[]
[null,"Koulutuskustannus",1000,"euroa"]
[]
[null,"Yritysten lukumäärä, kohdejoukko",400,"kappaletta","Lain kohteena olevien yritysten määrä. Tämä syötetään välilehdellä 2."]
[]
[null,"Toistuva kustannus yhteensä koko toimialalle",{"$f":"C16*C12","v":110282.87626862442},null,"=275,71 euroa x 400 yritystä"]
[null,"Kertaluontoinen kustannus koko toimialalle",{"$f":"C16*C14","v":400000},null,"=1000,00 euroa x 400 yritystä"]
[]
[null,"Kokonaiskustannus toimialalle ensimmäisenä vuotena",{"$f":"C18+C19","v":510282.87626862444},"euroa","1. vuoden kokonaiskustannus (kertaluonteinen + toistuva ensimmäisen vuoden osalta)"]
[null,"Kokonaiskustannus toimialalle seuraavina vuosina",{"$f":"C12*C16","v":110282.87626862442},"euroa","Vuotuinen kokonaiskustannus"]
[]
[null,"Vastaavasti laskettaisiin yrityksille kohdistuva säästö, jos esimerkin mukainen velvoite poistettaisiin."]
[]
[null,"Nettonykyarvo"]
[null,"Alla on esitetty myös nettonykyarvon laskenta yllä olevasta esimerkistä. Tätä lain valmistelijan ei tarvitse laskea, vaan taulukkolaskentapohja laskee sen automaattisesti. Tämä vain informaatiotarkoituksessa, jotta tulee esille lain vaikutus yli ajan (10 vuoden vaikutusjakso)."]
[]
[null,"Oletetaan seuraavat"]
[null,"Palkat nousevat vuosittain reaalisesti (ei inflaatiota)",1.7000000000000001E-2,null,null,"Vuosi"]
[null,"Käytetään diskonttauskorkona reaalista sosiaalista diskonttokorkoa",0.04,null,null,1,2,3,4,5,6,7,8,9,10]
[null,"(ks. TEM:n Yksi yhdestä -loppuraportti (19.12.2017), jossa nämä perusteltu)",null,null,"Kustannus",{"$f":"C21","v":510282.87626862444},{"$f":"$C$18*(1+$C$30)^G31","v":114064.36581299925},{"$f":"$C$18*(1+$C$30)^H31","v":116003.46003182023},117975.51885236117,119981.1026728513,122020.78141828976,124095.13470240065,{"$f":"$C$18*(1+$C$30)^M31","v":126204.75199234148},128350.23277621128,{"$f":"$C$18*(1+$C$30)^O31","v":130532.18673340685},"Huomioitu palkkojen reaalikasvu"]
[null,null,null,null,"Nykyarvo",{"$f":"F32/(1+$C$31)^$F$31","v":490656.61179675424},{"$f":"G32/(1+$C$31)^F31","v":109677.27482019158},{"$f":"H32/(1+$C$31)^G31","v":107251.71970397579},104879.80667206095,102560.34940912112,100292.18783565014,98074.187527746326,95905.239149728877,93784.25789930216,91710.182964990643]
[null,null,null,null,"Yhteensä 10 v",{"$f":"SUM(F33:O33)","v":1394791.8177795217}]
[]
[null,null,null,null,"Nykyarvo on ",{"$f":"F34","v":1394791.8177795217}]
[]
[null,"Ja vielä aivan yksinkertainen esimerkki nykyarvon laskemisesta"]
[null,"Kustannus euroa joka vuosi.",100]
[null,"Diskonttauskorko",0.1]
[null,null,null,null,null,"Vuosi"]
[null,null,null,null,null,1,2,3]
[null,null,null,null,"Kustannus",100,100,100]
[null,null,null,null,"Nykyarvo",{"$f":"F43/(1+$C$40)^F31","v":90.909090909090907},{"$f":"G43/(1+$C$40)^G31","v":82.644628099173545},{"$f":"H43/(1+$C$40)^H31","v":75.131480090157751}]
[null,null,null,null,"Yhteensä",{"$f":"SUM(F44:O44)","v":248.68519909842223}]
[]
[null,null,null,null,"Nykyarvo on ",{"$f":"F45","v":248.68519909842223},null,"Toisin sanoen, on samanarvoista saada tänään 248,7 euroa kuin saada vuoden, kahden ja kolmen kuluttua 100 euroa."]
[null,null,null,null,null,null,null,"Tämän voi ajatella myös niin, että jos tänään aiheutetaan yrityksille n. 250 euron kustannus, niin vuosittain toistuvana säästönä "]
[null,null,null,null,null,null,null,"pitäisi olla 100 euroa seuraavan 3 vuoden aikana, jotta aiheutettu kustannus ja säästö olisivat nykyarvoltaan samansuuruisia. "]
[null,"Annualisoidulla nettonykyarvolla tarkoitetaan puolestaan seuraavaa (esimerkki):"]
[]
[null,null,null,null,null,"Vuosittain"]
[null,"Tarkastellaan 10 vuoden ajanjaksoa kahdessa eri tapauksessa A ja B.",null,"Kertaluonteinen kustannus",null,"toistuva kustannus",null,null,"Kesto (n)"]
[null,"Tapauksessa A aiheutuu vuosittain toistuva 100 euron kustannussäästö 10 vuodelle.",null,0,"euroa",-100,"euroa",10,"vuotta"]
[null,"Tapauksessa B aiheutuu 500 euron kertaluontein kustannus ensimmäisenä vuonna ja 74 euron toistuva kustannus 5 vuoden ajan, jonka jälkeen ei kustannuksia.",null,500,"euroa",74,"euroa",10,"vuotta"]
[null,"Oletetaan diskonttauskoroksi (r) ",0.04]
[]
[null,"Tapauksen A ja B kustannuserät kohdentuvat hyvin eri tavalla 10 vuoden ajanjaksolle. Tapauksen B toistuva erä on tapausta A itseisarvoltaan pienempi ja tapauksessa B ei aiheudu kustannuksia enää viidennen vuoden jälkeen. Tapauksessa B on merkittävämpi kertaluonteinen erä ensimmäiselle vuoden. Tapausten nykyarvot ovat itseisarvoltaan samansuuruiset (811, pyöristys huomioiden). Annualisoidun nettonykyarvon avulla myös Tapauksen B kustannuserät voidaan jakaa tasaisesti 10 vuoden ajanjaksolle, jolloin vuosittaisista eristä saadaan vertailukelpoiset. Tässä esimerkissä Tapauksen B kustannuserät on tarkoituksella valittu siten, että ne muodostavat Tapauksen A kanssa itseisarvoltaan yhtäsuuren 100 euron vuosittaisen kustannuserän 10 vuodelle. Annualisoidun nykyarvon avulla voidaan vertailla 10 vuoden ajanjaksolta vuositason kustannuseriä lakiehdotuksista, jotka lähtökohtaisesti aiheuttavat kustannuksia eri aikaan ja eri tavalla jaksottuneina. ",null,"Tapaus A",null,1,2,3,4,5,6,7,8,9,10]
[null,null,null,null,"Kustannus",{"$f":"$F$54","v":-100},{"$f":"$F$54","v":-100},-100,-100,-100,-100,-100,-100,-100,-100]
[null,null,null,null,"Nykyarvo",{"$f":"F59/(1+$C$56)^F58","v":-96.153846153846146},{"$f":"G59/(1+$C$56)^G58","v":-92.455621301775139},{"$f":"H59/(1+$C$56)^H58","v":-88.899635867091476},{"$f":"I59/(1+$C$56)^I58","v":-85.480419102972576},{"$f":"J59/(1+$C$56)^J58","v":-82.19271067593516},-79.031452573014576,-75.991781320206329,-73.069020500198377,-70.258673557883043,-67.556416882579853]
[null,null,null,null,"Yhteensä 10 vuodelta",{"$f":"SUM(F60:O60)","v":-811.08957793550258}]
[]
[null,null,null,"Tapaus B",null,1,2,3,4,5,6,7,8,9,10]
[null,null,null,null,"Kustannus",{"$f":"D55+F55","v":574},{"$f":"$F$55","v":74},{"$f":"$F$55","v":74},74,74,0,0,0,0,0]
[null,null,null,null,"Nykyarvo",{"$f":"F64/(1+$C$56)^F63","v":551.92307692307691},{"$f":"G64/(1+$C$56)^G63","v":68.417159763313606},65.785730541647695,63.255510136199703,60.822605900192016,0,0,0,0,0]
[null,null,null,null,"Yhteensä 10 vuodelta",{"$f":"SUM(F65:O65)","v":810.20408326442998}]
[]
[null,null,null,"Annualisoidut nykyarvot"]
[null,null,null,null,"Tapaus A",{"$f":"($C$56*$F$61)/(1-(1+$C$56)^(-H54))","v":-99.999999999999858}]
[null,null,null,null,"Tapaus B",{"$f":"($C$56*$F$66)/(1-(1+$C$56)^(-H55))","v":99.89082652580403}]
[]
[]
[]
[]
[null,null,null,null,null,null,null,null,{"$f":"($F$61*$C$56)/(1-(1+$C$56)^-$H$54)","v":-99.999999999999858}]
[]
[]
[]
[]
[]
[null,null,null,null,null,null,null,null,{"$f":"($F$66*$C$56)/(1-(1+$C$56)^-$H$55)","v":99.89082652580403},null,"Jossa ","PV","Nykyarvo"]
[null,null,null,null,null,null,null,null,null,null,null,"A","Vuotuinen vakioerä"]
[null,null,null,null,null,null,null,null,null,null,null,"r","korko"]
[null,null,null,null,null,null,null,null,null,null,null,"n","Aika vuosina"]
[]
[]
[]
[]
[]
[null,"Huom. nykyarvon laskemisesta aiheutuu seuraava:"]
[]
[null,"Jos nykytilanteessa yrityksille aiheutuu 100 euron kustannus seuraavalle 4 vuodelle,",null,null,"Vuosi",2017,2018,2019,2020,2021,2022]
[null,"täytyy se korvata vuosittaisella 108 euron säästöllä, jos säästö tulee voimaan vasta",null,null,null,0,1,2,3,4,5]
[null,"2 vuotta nykytilanteen jälkeen.",null,null,"Kustannuslisäys",100,100,100,100]
[null,null,null,null,"Nykyarvo",{"$f":"F94/(1+$F$107)^F93","v":100},{"$f":"G94/(1+$F$107)^G93","v":96.153846153846146},{"$f":"H94/(1+$F$107)^H93","v":92.455621301775139},{"$f":"I94/(1+$F$107)^I93","v":88.899635867091476}]
[null,"Laskennassa huomioitu Annualisoitu NPV -välilehdellä myös inflaatio, mutta tässä",null,null,"Yhteensä",{"$f":"SUM(F95:N95)","v":377.50910332271275}]
[null,"yksinkertaisessa esimerkissä ei ole deflatoitu elinkustannusindeksillä siten kuin "]
[null,"varsinaisessa laskennassa tehdään deflatointi vuoden 2019 hinnoista perusvuoden",null,null,"Kustannussäästö_A",null,null,-100,-100,-100,-100]
[null,"2017 hintoihin. ",null,null,"Nykyarvo",null,null,{"$f":"H98/(1+$F$107)^H93","v":-92.455621301775139},{"$f":"I98/(1+$F$107)^I93","v":-88.899635867091476},{"$f":"J98/(1+$F$107)^J93","v":-85.480419102972576},{"$f":"K98/(1+$F$107)^K93","v":-82.19271067593516}]
[null,null,null,null,"Yhteensä",{"$f":"SUM(F99:K99)","v":-349.02838694777438}]
[]
[null,null,null,null,"Kustannussäästö_B",null,null,-108.30064663381104,{"$f":"H102","v":-108.30064663381104},{"$f":"I102","v":-108.30064663381104},-108.30064663381104]
[null,null,null,null,"Nykyarvo",null,null,{"$f":"H102/(1+$F$107)^H93","v":-100.13003571913002},{"$f":"I102/(1+$F$107)^I93","v":-96.278880499163478},{"$f":"J102/(1+$F$107)^J93","v":-92.575846633811025},{"$f":"K102/(1+$F$107)^K93","v":-89.01523714789522}]
[null,null,null,null,"Yhteensä",{"$f":"SUM(F103:K103)","v":-377.99999999999972}]
[]
[]
[null,null,null,null,"Korko ",0.04]

{"sheet":"Apu5_Tietolähteitä","index":10,"n_rows":29,"n_cols":17,"rows_kept":29,"cut":false,"hidden":false,"merged":[]}
["Tietolähteitä"]
[]
[]
["Tietokannat"]
[null,null,null,null,null,null,null,null,null,null,null,null,null,null,"Palaa takaisin tai siirry"]
[null,"Tilastokeskus",null,null,null,null,null,null,null,null,null,null,null,null,null,"Ohjeisiin"]
[null,null,"Tilastotietokannat",null,null,null,null,null,null,null,null,null,null,null,null,"Tarkistuslistaan","Ohjeet ja tarkistuslista"]
[null,null,"Tilastot",null,null,null,null,null,null,null,null,null,null,null,null,"Välilehdelle 1","Velvoiteluettelo"]
[null,null,null,"Esim. Yritykset",null,null,null,null,null,null,null,null,null,null,null,"Välilehdelle 2","Työkustannukset"]
[null,null,null,"Esim. Kauppa",null,null,null,null,null,null,null,null,null,null,null,"Välilehdelle 3","Muut kustannuksen ja kustannukset yhteensä"]
[null,null,null,"Esim. Rakentaminen",null,null,null,null,null,null,null,null,null,null,null,"Välilehdelle 4","Vuosittaiset poikkeukset kustannuserissä"]
[null,null,null,"Esim. Teollisuus",null,null,null,null,null,null,null,null,null,null,null,"Välilehdelle 5","Yhteenveto"]
[null,null,null,"Esim. Työmarkkinat",null,null,null,null,null,null,null,null,null,null,null,"Apu2","Tehtäväkohtainen aika - apu hahmottamiseen"]
[null,null,null,"Esim. Palkat ja työvoimakustannukset",null,null,null,null,null,null,null,null,null,null,null,"Apu3","Laite tms kustannuksista"]
[null,"Tulli - ULJAS - Tavaroiden ulkomaankauppatilastot",null,null,null,null,null,null,null,null,null,null,null,null,null,"Apu4","Yksinkertainen esimerkkilaskelma"]
[null,null,null,null,null,null,null,null,null,null,null,null,null,null,null,"Apu5","Tietolähteitä"]
[]
["Muut lähteet"]
[null,"Toimialavirastot"]
[null,"Yritykset"]
[null,null,"Suorat yhteydet yrityksiin"]
[null,null,"Kyselytutkimuksen teettäminen"]
[null,null,null,"Käytettävissä oleva aika ja raha?"]
[null,"Toimialaliitot ja -yhdistykset "]
[null,null,"EK"]
[null,null,"Suomen yrittäjät"]
[null,null,"Toimialayhdistykset"]
[null,"Aiemmat selvitykset ja lakihankkeet"]
[null,"Kansainväliset esimerkit"]

{"sheet":"Annualisoitu NPV","index":11,"n_rows":51,"n_cols":12,"rows_kept":51,"cut":false,"hidden":false,"merged":[[39,15,39,17]]}
["Annualisoidun nettonykyarvon (AENPV) laskenta"]
["AENPV = Annual Equivalent Net Present Value"]
[]
[null,null,null,{"$f":"\"Velvoite\"&D18+1","v":"Velvoite1"},{"$f":"\"Velvoite\"&E18+1","v":"Velvoite2"},"Velvoite3","Velvoite4","Velvoite5",null,"Yhteensä"]
[null,null,"Sääntelyn luonne",{"$f":"OFFSET('1_Velvoiteluettelo'!$G$17,D18,0)","v":0},{"$f":"OFFSET('1_Velvoiteluettelo'!$G$17,E18,0)","v":0},{"$f":"OFFSET('1_Velvoiteluettelo'!$G$17,F18,0)","v":0},{"$f":"OFFSET('1_Velvoiteluettelo'!$G$17,G18,0)","v":0},{"$f":"OFFSET('1_Velvoiteluettelo'!$G$17,H18,0)","v":0}]
[null,null,"Frekvenssi",{"$f":"OFFSET('2B_Työkustannus'!$F12,0,D18)","v":0},{"$f":"OFFSET('2B_Työkustannus'!$F12,0,E18)","v":0},{"$f":"OFFSET('2B_Työkustannus'!$F12,0,F18)","v":0},{"$f":"OFFSET('2B_Työkustannus'!$F12,0,G18)","v":0},{"$f":"OFFSET('2B_Työkustannus'!$F12,0,H18)","v":0}]
[null,null,"Yritysjoukon suuruus",{"$f":"OFFSET('2B_Työkustannus'!$F11,0,D18)","v":0},{"$f":"OFFSET('2B_Työkustannus'!$F11,0,E18)","v":0},{"$f":"OFFSET('2B_Työkustannus'!$F11,0,F18)","v":0},{"$f":"OFFSET('2B_Työkustannus'!$F11,0,G18)","v":0},{"$f":"OFFSET('2B_Työkustannus'!$F11,0,H18)","v":0}]
[null,null,"Toistuvat henkilöstömenot",{"$f":"IF(ISNUMBER(OFFSET('1_Velvoiteluettelo'!$F$17,D18,0)),'3_Muut kustannukset'!I21,0)","v":0},{"$f":"IF(ISNUMBER(OFFSET('1_Velvoiteluettelo'!$F$17,E18,0)),'3_Muut kustannukset'!J21,0)","v":0},{"$f":"IF(ISNUMBER(OFFSET('1_Velvoiteluettelo'!$F$17,F18,0)),'3_Muut kustannukset'!K21,0)","v":0},{"$f":"IF(ISNUMBER(OFFSET('1_Velvoiteluettelo'!$F$17,G18,0)),'3_Muut kustannukset'!L21,0)","v":0},{"$f":"IF(ISNUMBER(OFFSET('1_Velvoiteluettelo'!$F$17,H18,0)),'3_Muut kustannukset'!M21,0)","v":0},null,{"$f":"SUM(D8:I8)","v":0}]
[null,null,"josta palkat",{"$f":"IF(ISNUMBER(OFFSET('1_Velvoiteluettelo'!$F$17,D18,0)),D8/(1+'2B_Työkustannus'!$E$69),0)","v":0},{"$f":"IF(ISNUMBER(OFFSET('1_Velvoiteluettelo'!$F$17,E18,0)),E8/(1+'2B_Työkustannus'!$E$69),0)","v":0},{"$f":"IF(ISNUMBER(OFFSET('1_Velvoiteluettelo'!$F$17,F18,0)),F8/(1+'2B_Työkustannus'!$E$69),0)","v":0},{"$f":"IF(ISNUMBER(OFFSET('1_Velvoiteluettelo'!$F$17,G18,0)),G8/(1+'2B_Työkustannus'!$E$69),0)","v":0},{"$f":"IF(ISNUMBER(OFFSET('1_Velvoiteluettelo'!$F$17,H18,0)),H8/(1+'2B_Työkustannus'!$E$69),0)","v":0},null,0]
[null,null,"josta sivu- ja yleiskulu",{"$f":"IF(ISNUMBER(OFFSET('1_Velvoiteluettelo'!$F$17,D18,0)),D8-D9,0)","v":0},{"$f":"IF(ISNUMBER(OFFSET('1_Velvoiteluettelo'!$F$17,E18,0)),E8-E9,0)","v":0},{"$f":"IF(ISNUMBER(OFFSET('1_Velvoiteluettelo'!$F$17,F18,0)),F8-F9,0)","v":0},{"$f":"IF(ISNUMBER(OFFSET('1_Velvoiteluettelo'!$F$17,G18,0)),G8-G9,0)","v":0},{"$f":"IF(ISNUMBER(OFFSET('1_Velvoiteluettelo'!$F$17,H18,0)),H8-H9,0)","v":0},null,0]
[null,null,"Toistuvat muut kulut",{"$f":"IF(ISNUMBER(OFFSET('1_Velvoiteluettelo'!$F$17,D18,0)),'3_Muut kustannukset'!I28,0)","v":0},{"$f":"IF(ISNUMBER(OFFSET('1_Velvoiteluettelo'!$F$17,E18,0)),'3_Muut kustannukset'!J28,0)","v":0},{"$f":"IF(ISNUMBER(OFFSET('1_Velvoiteluettelo'!$F$17,F18,0)),'3_Muut kustannukset'!K28,0)","v":0},{"$f":"IF(ISNUMBER(OFFSET('1_Velvoiteluettelo'!$F$17,G18,0)),'3_Muut kustannukset'!L28,0)","v":0},{"$f":"IF(ISNUMBER(OFFSET('1_Velvoiteluettelo'!$F$17,H18,0)),'3_Muut kustannukset'!M28,0)","v":0},null,0]
[null,null,"Kertaluontoiset henkilöstökulut",{"$f":"IF(ISNUMBER(OFFSET('1_Velvoiteluettelo'!$F$17,D18,0)),'3_Muut kustannukset'!I36,0)","v":0},{"$f":"IF(ISNUMBER(OFFSET('1_Velvoiteluettelo'!$F$17,E18,0)),'3_Muut kustannukset'!J36,0)","v":0},{"$f":"IF(ISNUMBER(OFFSET('1_Velvoiteluettelo'!$F$17,F18,0)),'3_Muut kustannukset'!K36,0)","v":0},{"$f":"IF(ISNUMBER(OFFSET('1_Velvoiteluettelo'!$F$17,G18,0)),'3_Muut kustannukset'!L36,0)","v":0},{"$f":"IF(ISNUMBER(OFFSET('1_Velvoiteluettelo'!$F$17,H18,0)),'3_Muut kustannukset'!M36,0)","v":0},null,0]
[null,null,"josta palkat",{"$f":"IF(ISNUMBER(OFFSET('1_Velvoiteluettelo'!$F$17,D18,0)),D12/(1+'2B_Työkustannus'!$E$69),0)","v":0},{"$f":"IF(ISNUMBER(OFFSET('1_Velvoiteluettelo'!$F$17,E18,0)),E12/(1+'2B_Työkustannus'!$E$69),0)","v":0},{"$f":"IF(ISNUMBER(OFFSET('1_Velvoiteluettelo'!$F$17,F18,0)),F12/(1+'2B_Työkustannus'!$E$69),0)","v":0},{"$f":"IF(ISNUMBER(OFFSET('1_Velvoiteluettelo'!$F$17,G18,0)),G12/(1+'2B_Työkustannus'!$E$69),0)","v":0},{"$f":"IF(ISNUMBER(OFFSET('1_Velvoiteluettelo'!$F$17,H18,0)),H12/(1+'2B_Työkustannus'!$E$69),0)","v":0},null,0]
[null,null,"josta sivu- ja yleiskulu",{"$f":"IF(ISNUMBER(OFFSET('1_Velvoiteluettelo'!$F$17,D18,0)),D12-D13,0)","v":0},{"$f":"IF(ISNUMBER(OFFSET('1_Velvoiteluettelo'!$F$17,E18,0)),E12-E13,0)","v":0},{"$f":"IF(ISNUMBER(OFFSET('1_Velvoiteluettelo'!$F$17,F18,0)),F12-F13,0)","v":0},{"$f":"IF(ISNUMBER(OFFSET('1_Velvoiteluettelo'!$F$17,G18,0)),G12-G13,0)","v":0},{"$f":"IF(ISNUMBER(OFFSET('1_Velvoiteluettelo'!$F$17,H18,0)),H12-H13,0)","v":0},null,0]
[null,null,"Kertaluontoiset muut kulut",{"$f":"IF(ISNUMBER(OFFSET('1_Velvoiteluettelo'!$F$17,D18,0)),'3_Muut kustannukset'!I43,0)","v":0},{"$f":"IF(ISNUMBER(OFFSET('1_Velvoiteluettelo'!$F$17,E18,0)),'3_Muut kustannukset'!J43,0)","v":0},{"$f":"IF(ISNUMBER(OFFSET('1_Velvoiteluettelo'!$F$17,F18,0)),'3_Muut kustannukset'!K43,0)","v":0},{"$f":"IF(ISNUMBER(OFFSET('1_Velvoiteluettelo'!$F$17,G18,0)),'3_Muut kustannukset'!L43,0)","v":0},{"$f":"IF(ISNUMBER(OFFSET('1_Velvoiteluettelo'!$F$17,H18,0)),'3_Muut kustannukset'!M43,0)","v":0},null,0]
[null,null,"Yrityskentän kasvuvauhti",{"$f":"OFFSET('4_Poikkeukset'!$C8,D18,0)","v":0},{"$f":"OFFSET('4_Poikkeukset'!$C8,E18,0)","v":0},{"$f":"OFFSET('4_Poikkeukset'!$C8,F18,0)","v":0},{"$f":"OFFSET('4_Poikkeukset'!$C8,G18,0)","v":0},{"$f":"OFFSET('4_Poikkeukset'!$C8,H18,0)","v":0}]
[null,null,"apulaskuja",{"$f":"IF(D16>0,D16,0)","v":0},{"$f":"IF(E16>0,E16,0)","v":0},{"$f":"IF(F16>0,F16,0)","v":0},{"$f":"IF(G16>0,G16,0)","v":0},{"$f":"IF(H16>0,H16,0)","v":0}]
[null,null,"apulaskuja",0,{"$f":"D18+1","v":1},{"$f":"E18+1","v":2},{"$f":"F18+1","v":3},{"$f":"G18+1","v":4},{"$f":"H18+1","v":5}]
[null,null,"Perusvuosi",{"$f":"'1_Velvoiteluettelo'!$B$13","v":2017},{"$f":"'1_Velvoiteluettelo'!$B$13","v":2017},{"$f":"'1_Velvoiteluettelo'!$B$13","v":2017},{"$f":"'1_Velvoiteluettelo'!$B$13","v":2017},{"$f":"'1_Velvoiteluettelo'!$B$13","v":2017}]
[null,null,"Voimaantulovuosi",{"$f":"OFFSET('1_Velvoiteluettelo'!$F$17,D18,0)","v":0},{"$f":"OFFSET('1_Velvoiteluettelo'!$F$17,E18,0)","v":0},{"$f":"OFFSET('1_Velvoiteluettelo'!$F$17,F18,0)","v":0},{"$f":"OFFSET('1_Velvoiteluettelo'!$F$17,G18,0)","v":0},{"$f":"OFFSET('1_Velvoiteluettelo'!$F$17,H18,0)","v":0}]
[]
[null,null,"Tarkastelujakso vuosina:",{"$f":"IF(ISNUMBER(OFFSET('1_Velvoiteluettelo'!$E17,D18,0)),OFFSET('1_Velvoiteluettelo'!$E17,D18,0),10)","v":10},{"$f":"IF(ISNUMBER(OFFSET('1_Velvoiteluettelo'!$E17,E18,0)),OFFSET('1_Velvoiteluettelo'!$E17,E18,0),10)","v":10},{"$f":"IF(ISNUMBER(OFFSET('1_Velvoiteluettelo'!$E17,F18,0)),OFFSET('1_Velvoiteluettelo'!$E17,F18,0),10)","v":10},{"$f":"IF(ISNUMBER(OFFSET('1_Velvoiteluettelo'!$E17,G18,0)),OFFSET('1_Velvoiteluettelo'!$E17,G18,0),10)","v":10},{"$f":"IF(ISNUMBER(OFFSET('1_Velvoiteluettelo'!$E17,H18,0)),OFFSET('1_Velvoiteluettelo'!$E17,H18,0),10)","v":10}]
[null,null,null,null,null,null,null,null,null,null,null,"Nettonykyarvon laskentakaavat"]
[null,null,"Sosiaalinen diskonttokorko (reaalinen):",0.04,null,null,null,null,null,null,null,"Toistuvat kustannuserät annuiteettina perusvuoden nykyarvoon, ml. deflatointi"]
[null,null,"EKI=1951 indeksiluku 2 v. ennen perusvuotta, vka (2015)",1906]
[null,null,"EKI=1951 indeksiluku HE:n valmisteluvuotta ed v. vka (2016)",1913]
[null,null,"Kokonaiskasvu (palkkojen nousu ja yrityskentän kasvu)",{"$f":"(1+'Taustatietoa ATI ja EKI'!$G30)*(1+D16)-1","v":1.6682106606680236E-2},{"$f":"(1+'Taustatietoa ATI ja EKI'!$G30)*(1+E16)-1","v":1.6682106606680236E-2},{"$f":"(1+'Taustatietoa ATI ja EKI'!$G30)*(1+F16)-1","v":1.6682106606680236E-2},{"$f":"(1+'Taustatietoa ATI ja EKI'!$G30)*(1+G16)-1","v":1.6682106606680236E-2},{"$f":"(1+'Taustatietoa ATI ja EKI'!$G30)*(1+H16)-1","v":1.6682106606680236E-2}]
[null,null,"NPV",{"$f":"D4","v":"Velvoite1"},{"$f":"E4","v":"Velvoite2"},{"$f":"F4","v":"Velvoite3"},{"$f":"G4","v":"Velvoite4"},{"$f":"H4","v":"Velvoite5"},null,"Yhteensä",null,"Kertaluonteiset voimaantulovuodesta perusvuoteen, ml. deflatointi"]
[null,null,{"$f":"C8","v":"Toistuvat henkilöstömenot"},{"$f":"IF(ISNUMBER(D$20),IF(D27=$D$24,D8*($D$25/$D$26)*D22*(1+$D$24)^-(D$20-D$19+1),(((D8)*($D$25/$D$26))*((1-((1+D$27)/(1+$D$24))^D$22)/($D$24-D$27))*((1+$D$24)^-(D$20-D$19)))),0)","v":0},{"$f":"IF(ISNUMBER(E$20),IF(E27=$D$24,E8*($D$25/$D$26)*E22*(1+$D$24)^-(E$20-E$19+1),(((E8)*($D$25/$D$26))*((1-((1+E$27)/(1+$D$24))^E$22)/($D$24-E$27))*((1+$D$24)^-(E$20-E$19)))),0)","v":0},0,0,0,null,{"$f":"SUM(D29:I29)","v":0}]
[null,null,"josta palkat",{"$f":"IF(ISNUMBER(D$20),IF(D27=$D$24,D9*($D$25/$D$26)*D22*(1+$D$24)^-(D$20-D$19+1),(((D9)*($D$25/$D$26))*((1-((1+D$27)/(1+$D$24))^D$22)/($D$24-D$27))*((1+$D$24)^-(D$20-D$19)))),0)","v":0},{"$f":"IF(ISNUMBER(E$20),IF(E27=$D$24,E9*($D$25/$D$26)*E22*(1+$D$24)^-(E$20-E$19+1),(((E9)*($D$25/$D$26))*((1-((1+E$27)/(1+$D$24))^E$22)/($D$24-E$27))*((1+$D$24)^-(E$20-E$19)))),0)","v":0},0,0,0,null,{"$f":"SUM(D30:I30)","v":0}]
[null,null,"josta sivu- ja yleiskulu",{"$f":"IF(ISNUMBER(D$20),IF(D27=$D$24,D10*($D$25/$D$26)*D22*(1+$D$24)^-(D$20-D$19+1),(((D10)*($D$25/$D$26))*((1-((1+D$27)/(1+$D$24))^D$22)/($D$24-D$27))*((1+$D$24)^-(D$20-D$19)))),0)","v":0},{"$f":"IF(ISNUMBER(E$20),IF(E27=$D$24,E10*($D$25/$D$26)*E22*(1+$D$24)^-(E$20-E$19+1),(((E10)*($D$25/$D$26))*((1-((1+E$27)/(1+$D$24))^E$22)/($D$24-E$27))*((1+$D$24)^-(E$20-E$19)))),0)","v":0},0,0,0,null,0]
[null,null,"Toistuvat muut kulut",{"$f":"IF(ISNUMBER(D$20),IF(D16=$D$24,D11*($D$25/$D$26)*D22*(1+$D$24)^-(D$20-D$19+1),(((D11)*($D$25/$D$26))*((1-((1+D$16)/(1+$D$24))^D$22)/($D$24-D$16))*((1+$D$24)^-(D$20-D$19)))),0)","v":0},{"$f":"IF(ISNUMBER(E$20),IF(E16=$D$24,E11*($D$25/$D$26)*E22*(1+$D$24)^-(E$20-E$19+1),(((E11)*($D$25/$D$26))*((1-((1+E$16)/(1+$D$24))^E$22)/($D$24-E$16))*((1+$D$24)^-(E$20-E$19)))),0)","v":0},0,0,0,null,0,null,"Kertaluonteiset, jos kasvava yritysjoukko (kertaluonteiset uusille alalle tuleville yrityksille -> annuiteetti tältä osin) "]
[null,null,"Kertaluontoiset henkilöstökulut",{"$f":"IF(AND(ISNUMBER(D$20),(D$27>0)),((D12*($D$25/$D$26))*((1+$D$24)^-(D$20-D$19+1))+((D$27*D12)*($D$25/$D$26)*(1-((1+D$27)/(1+$D$24))^D$22)/($D$24-D$27))*((1+$D$24)^-(D$20-D$19))),((D12*($D$25/$D$26))*((1+$D$24)^-(D$20-D$19+1))))","v":0},{"$f":"IF(AND(ISNUMBER(E$20),(E$27>0)),((E12*($D$25/$D$26))*((1+$D$24)^-(E$20-E$19+1))+((E$27*E12)*($D$25/$D$26)*(1-((1+E$27)/(1+$D$24))^E$22)/($D$24-E$27))*((1+$D$24)^-(E$20-E$19))),((E12*($D$25/$D$26))*((1+$D$24)^-(E$20-E$19+1))))","v":0},0,0,0,null,0]
[null,null,"josta palkat",{"$f":"IF(AND(ISNUMBER(D$20),(D$27>0)),((D13*($D$25/$D$26))*((1+$D$24)^-(D$20-D$19+1))+((D$27*D13)*($D$25/$D$26)*(1-((1+D$27)/(1+$D$24))^D$22)/($D$24-D$27))*((1+$D$24)^-(D$20-D$19))),((D13*($D$25/$D$26))*((1+$D$24)^-(D$20-D$19+1))))","v":0},{"$f":"IF(AND(ISNUMBER(E$20),(E$27>0)),((E13*($D$25/$D$26))*((1+$D$24)^-(E$20-E$19+1))+((E$27*E13)*($D$25/$D$26)*(1-((1+E$27)/(1+$D$24))^E$22)/($D$24-E$27))*((1+$D$24)^-(E$20-E$19))),((E13*($D$25/$D$26))*((1+$D$24)^-(E$20-E$19+1))))","v":0},0,0,0,null,0]
[null,null,"josta sivu- ja yleiskulu",{"$f":"IF(AND(ISNUMBER(D$20),(D$27>0)),((D14*($D$25/$D$26))*((1+$D$24)^-(D$20-D$19+1))+((D$27*D14)*($D$25/$D$26)*(1-((1+D$27)/(1+$D$24))^D$22)/($D$24-D$27))*((1+$D$24)^-(D$20-D$19))),((D14*($D$25/$D$26))*((1+$D$24)^-(D$20-D$19+1))))","v":0},{"$f":"IF(AND(ISNUMBER(E$20),(E$27>0)),((E14*($D$25/$D$26))*((1+$D$24)^-(E$20-E$19+1))+((E$27*E14)*($D$25/$D$26)*(1-((1+E$27)/(1+$D$24))^E$22)/($D$24-E$27))*((1+$D$24)^-(E$20-E$19))),((E14*($D$25/$D$26))*((1+$D$24)^-(E$20-E$19+1))))","v":0},0,0,0,null,0]
[null,null,"Kertaluontoiset muut kulut",{"$f":"IF(AND(ISNUMBER(D$20),(D$16>0)),IF(D16=$D$24,(D15*($D$25/$D$26))*((1+$D$24)^-(D$20-D$19+1))+D15*$D$24*($D$25/$D$26)*D22*(1+$D$24)^-(D$20-D$19+1),((D15*($D$25/$D$26))*((1+$D$24)^-(D$20-D$19+1))+((D$16*D15)*($D$25/$D$26)*(1-((1+D$16)/(1+$D$24))^D$22)/($D$24-D$16))*((1+$D$24)^-(D$20-D$19)))),((D15*($D$25/$D$26))*((1+$D$24)^-(D$20-D$19+1))))","v":0},{"$f":"IF(AND(ISNUMBER(E$20),(E$16>0)),IF(E16=$D$24,(E15*($D$25/$D$26))*((1+$D$24)^-(E$20-E$19+1))+E15*$D$24*($D$25/$D$26)*E22*(1+$D$24)^-(E$20-E$19+1),((E15*($D$25/$D$26))*((1+$D$24)^-(E$20-E$19+1))+((E$16*E15)*($D$25/$D$26)*(1-((1+E$16)/(1+$D$24))^E$22)/($D$24-E$16))*((1+$D$24)^-(E$20-E$19)))),((E15*($D$25/$D$26))*((1+$D$24)^-(E$20-E$19+1))))","v":0},0,0,0,null,0]
[]
[null,null,"Yhteensä",{"$f":"D29+D32+D33+D36","v":0},{"$f":"E29+E32+E33+E36","v":0},0,0,0,null,{"$f":"J29+J32+J33+J36","v":0}]
[]
[null,null,"ANNUALISOITU NPV (NPV per vuosi, 1:1 -vertailuluku)",{"$f":"(D38*($D$24))/(1-(1+$D$24)^(-10))","v":0},{"$f":"(E38*($D$24))/(1-(1+$D$24)^(-10))","v":0},{"$f":"(F38*($D$24))/(1-(1+$D$24)^(-10))","v":0},{"$f":"(G38*($D$24))/(1-(1+$D$24)^(-10))","v":0},{"$f":"(H38*($D$24))/(1-(1+$D$24)^(-10))","v":0},null,{"$f":"SUM(D40:I40)","v":0}]
[]
[]
[null,null,null,null,null,null,null,null,null,null,null,"PV = nykyarvo, tarkoittaa myös nettonykyarvoa NPV"]
[null,null,null,null,null,null,null,null,null,null,null,"A = kustannuserä valmisteluvuoden nykyrahassa"]
[null,null,null,null,null,null,null,null,null,null,null," r = korko, reaalinen sosiaalinen diskonttokorko"]
[null,null,null,null,null,null,null,null,null,null,null,"g = kasvutekijä = yritysjoukin %-kasvu vuodessa (jos tarpeen, ks. välilehti 4) ja palkkojen reaalikasvu (jos relevantti)"]
[null,null,null,null,null,null,null,null,null,null,null,"T =  oletettu lain voimassaoloaika, lähtökohtaisesti 10 vuotta. "]
[null,null,null,null,null,null,null,null,null,null,null,"AENPV-kaavassa T = 10, jotta vuositasolle jyvitetyt kustannuserät ovat vertailukelpoisia."]
[null,null,null,null,null,null,null,null,null,null,null,"t0 = perusvuosi (2017)"]
[null,null,null,null,null,null,null,null,null,null,null,"tf = velvoitteen tai muutoksen voimaantulovuosi "]
[null,null,null,null,null,null,null,null,null,null,null,"C = kertaluonteinen kustannuserä valmisteluvuoden nykyrahassa"]

{"sheet":"Listat (älä muuta)","index":12,"n_rows":13,"n_cols":4,"rows_kept":13,"cut":false,"hidden":false,"merged":[]}
[]
[]
[]
[null,1]
[null,2,null,"EU-minimisääntelyä"]
[null,3,null,"Kansallista tai EU-minimin ylittävää sääntelyä"]
[null,4,null,"EU:n velvoittamaa sääntelyn purkua"]
[null,5,null,"Kansallisen tai EU-minimin ylittävän sääntelyn purkua"]
[null,6]
[null,7]
[null,8]
[null,9]
[null,"toistaiseksi"]

{"sheet":"Taustatietoa ATI ja EKI","index":13,"n_rows":39,"n_cols":11,"rows_kept":39,"cut":false,"hidden":false,"merged":[]}
["Taustatietoa elinkustannusindeksi (EKI) ja ansiotasoindeksi (ATI)"]
[]
[]
[null,null,null,null,null,"Muutos","Reaalinen muutos"]
[null,null,null,null,"Yksityinen","Yksityinen","Yksityinen",null,null,"Muutos"]
[null,null,null,null,"ATI 1995=100","ATI 1995=100","ATI 1995=100",null,"EKI 1951=100","EKI 1951=100","CAGR 1995-2016"]
[null,null,null,"1995",100,null,null,null,1390]
[null,null,{"$f":"D8-$D$7","v":1},"1996",104.2,{"$f":"E8/E7-1","v":4.2000000000000037E-2},{"$f":"(1+F8)/(1+J8)-1","v":3.6037195994277571E-2},null,1398,{"$f":"I8/I7-1","v":5.7553956834532904E-3},{"$f":"$J$30","v":1.5324275701755985E-2}]
[null,null,{"$f":"D9-$D$7","v":2},"1997",107,2.6871401151631558E-2,1.4534430254403485E-2,null,1415,{"$f":"I9/I8-1","v":1.2160228898426384E-2},{"$f":"$J$30","v":1.5324275701755985E-2}]
[null,null,3,"1998",110.9,3.6448598130841114E-2,2.2003321501839812E-2,null,1435,1.4134275618374659E-2,1.5324275701755985E-2]
[null,null,4,"1999",114.1,2.8854824165915227E-2,1.6809003221823993E-2,null,1452,1.184668989547033E-2,1.5324275701755985E-2]
[null,null,5,"2000",119.1,4.382120946538115E-2,9.7457669178768747E-3,null,1501,3.3746556473829292E-2,1.5324275701755985E-2]
[null,null,6,"2001",124.8,4.7858942065491128E-2,2.1985881767577764E-2,null,1539,2.5316455696202445E-2,1.5324275701755985E-2]
[null,null,7,"2002",129.30000000000001,3.6057692307692513E-2,2.0148936955558971E-2,null,1563,1.5594541910331383E-2,1.5324275701755985E-2]
[null,null,8,"2003",134.4,3.9443155452436152E-2,3.0215378549243832E-2,null,1577,8.9571337172105192E-3,1.5324275701755985E-2]
[null,null,9,"2004",139.4,3.7202380952380931E-2,3.5233009342977573E-2,null,1580,1.9023462270133518E-3,1.5324275701755985E-2]
[null,null,10,"2005",144.80000000000001,3.8737446197991465E-2,2.9614281676804577E-2,null,1594,8.8607594936709333E-3,1.5324275701755985E-2]
[null,null,11,"2006",149.19999999999999,3.0386740331491469E-2,1.2599546293709851E-2,null,1622,1.7565872020075313E-2,1.5324275701755985E-2]
[null,null,12,"2007",154,3.2171581769437019E-2,7.3299071179462327E-3,null,1662,2.4660912453760897E-2,1.5324275701755985E-2]
[null,null,13,"2008",162.30000000000001,5.3896103896103886E-2,1.2471285939493981E-2,null,1730,4.0914560770156427E-2,1.5324275701755985E-2]
[null,null,14,"2009",168.9,4.0665434380776411E-2,4.0665434380776411E-2,null,1730,0,1.5324275701755985E-2]
[null,null,15,"2010",172.8,2.3090586145648295E-2,1.08205105836503E-2,null,1751,1.2138728323699333E-2,1.5324275701755985E-2]
[null,null,16,"2011",177.2,2.5462962962962798E-2,-9.0586930749735339E-3,null,1812,3.4837235865219807E-2,1.5324275701755985E-2]
[null,null,17,"2012",182.5,2.990970654627545E-2,1.7157210208540441E-3,null,1863,2.8145695364238499E-2,1.5324275701755985E-2]
[null,null,18,"2013",186.5,2.1917808219177992E-2,7.3189823874753035E-3,null,1890,1.449275362318847E-2,1.5324275701755985E-2]
[null,null,19,"2014",189.6,1.6621983914208993E-2,5.9767275381439333E-3,null,1910,1.0582010582010692E-2,1.5324275701755985E-2]
[null,null,20,"2015",192.5,1.5295358649789037E-2,1.742609392502481E-2,null,1906,-2.0942408376963817E-3,1.5324275701755985E-2]
[null,null,{"$f":"D28-$D$7","v":21},2016,194.8,{"$f":"E28/E27-1","v":1.194805194805193E-2},8.2451578740130316E-3,null,1913,3.672612801678854E-3,1.5324275701755985E-2]
[]
[null,null,"CAGR",null,null,{"$f":"(E28/E7)^(1/$C$28)-1","v":3.2262023509363136E-2},{"$f":"(1+F30)/(1+J30)-1","v":1.6682106606680236E-2},null,null,{"$f":"(I28/I7)^(1/$C$28)-1","v":1.5324275701755985E-2}]
[]
[]
[null,null,"Muuttuja","Arvo","Lähde"]
[null,null,"Ansiotasoindeksin nimellismuutos keskimäärin 1995 - 2016",{"$f":"F30","v":3.2262023509363136E-2},"Tilastokeskus, ATI=1995, laatijan laskelmat"]
[null,null,"Ansiotasoindeksin reaalimuutos keskimäärin 1995 - 2016",{"$f":"G30","v":1.6682106606680236E-2},"Tilastokeskus, ATI=1995 ja EKI=1951, laatijan laskelmat Fisherin relaatiolla"]
[null,null,"Inflaatio keskimäärin 1995 - 2016",{"$f":"J30","v":1.5324275701755985E-2},"Tilastokeskus, EKI=1951, vuosikeskiarvo, laatijan laskelmat"]
[]
[null,null,null,null,"ks. myös esim. "]
[null,null,null,null,"http://stat.fi/til/ati/2017/01/ati_2017_01_2017-05-30_tie_001_fi.html "]

{"sheet":"Taustatietoa palkat am lk","index":14,"n_rows":597,"n_cols":2,"rows_kept":597,"cut":false,"hidden":false,"merged":[]}
["Yksityisen sektorin kuukausipalkkaisten ansiot ammattiluokituksen (AML 2010) mukaan vuonna 2016"]
[]
["Ammattiluokka","Säännöllisen työajan keskiansio"]
["S Yhteensä",3596]
["1 Johtajat",6577]
["11 Johtajat, ylimmät virkamiehet ja järjestöjen johtajat",6857]
["111 Ylimmät virkamiehet ja järjestöjen johtajat",5891]
["1112 Julkishallinnon ylimmät virkamiehet",".."]
["1114 Järjestöjen johtajat",5893]
["11141 Työmarkkina- ja elinkeinoelämän järjestöjen johtajat",8870]
["11142 Muiden järjestöjen johtajat",4573]
["12 Hallintojohtajat ja kaupalliset johtajat",6862]
["121 Liiketoiminta- ja hallintojohtajat",7006]
["1211 Talousjohtajat",7081]
["1212 Henkilöstöjohtajat",6672]
["1213 Politiikka- ja suunnittelujohtajat",7725]
["1219 Muut hallintojohtajat ja kaupalliset johtajat",6781]
["122 Myynti-, markkinointi- ja kehitysjohtajat",6755]
["1221 Myynti- ja markkinointijohtajat",6957]
["1222 Mainos- ja tiedotusjohtajat",6303]
["1223 Tutkimus- ja kehitysjohtajat",6526]
["13 Tuotantotoiminnan ja yhteiskunnan peruspalvelujen johtajat",6217]
["131 Maa-, metsä- ja kalatalouden johtajat",4943]
["1311 Maa- ja metsätalouden johtajat",5033]
["1312 Vesiviljely- ja kalatalouden johtajat",".."]
["132 Teollisuuden tuotantojohtajat sekä kaivos-, rakennus- ja jakelujohtajat",5826]
["1321 Teollisuuden tuotantojohtajat",5623]
["1322 Kaivostoiminnan tuotantojohtajat",".."]
["1323 Rakennustoiminnan tuotantojohtajat",5932]
["1324 Hankinta- ja jakelujohtajat",5972]
["133 Tieto- ja viestintäteknologiajohtajat",6721]
["1330 Tieto- ja viestintäteknologiajohtajat",6721]
["134 Yhteiskunnan peruspalvelujen sekä rahoitus- ja vakuutuspalvelujen johtajat",6486]
["1341 Lastenhoidon johtajat",3206]
["1342 Terveydenhuollon johtajat",6984]
["1343 Vanhustenhuollon johtajat",".."]
["1344 Sosiaalihuollon johtajat",4350]
["1345 Opetusalan johtajat",5886]
["1346 Rahoitus- ja vakuutuspalvelujen johtajat",8395]
["1349 Muut yhteiskunnan palvelujen johtajat",5797]
["14 Hotelli- ja ravintola-alan, vähittäiskaupan ja muiden palvelualojen johtajat",5633]
["141 Hotellin- ja ravintolanjohtajat",4111]
["1411 Hotellinjohtajat",4040]
["1412 Ravintolanjohtajat",".."]
["142 Vähittäis- ja tukkukaupan johtajat",6570]
["1420 Vähittäis- ja tukkukaupan johtajat",6570]
["143 Muiden palvelualojen johtajat",5506]
["1431 Urheilu-, vapaa-aika- ja kulttuurikeskusten johtajat",5267]
["1439 Muut palvelualojen johtajat",5798]
["2 Erityisasiantuntijat",4475]
["21 Luonnontieteiden ja tekniikan erityisasiantuntijat",4469]
["211 Luonnon- ja geotieteen erityisasiantuntijat",4020]
["2111 Fyysikot ja astronomit",3483]
["2112 Meteorologit",".."]
["2113 Kemistit",4321]
["2114 Geologit ja geofyysikot",4362]
["212 Matematiikan ja tilastotieteen erityisasiantuntijat",4116]
["2120 Matemaatikot, aktuaarit ja tilastotieteilijät",4116]
["213 Biotieteiden erityisasiantuntijat",3631]
["2131 Biologit, kasvi- ja eläintieteilijät ym. erityisasiantuntijat",3832]
["2132 Maa-, metsä- ja kalatalouden erityisasiantuntijat",3305]
["21321 Maa- ja kalatalouden erityisasiantuntijat",3046]
["21322 Metsätalouden erityisasiantuntijat",3307]
["2133 Ympäristön- ja luonnonsuojelun erityisasiantuntijat",4079]
["214 Tekniikan erityisasiantuntijat (pl. sähköteknologia)",4606]
["2141 Teollisen valmistuksen ja tuotantotekniikan erityisasiantuntijat",4714]
["2142 Maa- ja vesirakentamisen erityisasiantuntijat",4644]
["2143 Ympäristötekniikan erityisasiantuntijat",3198]
["2144 Konetekniikan erityisasiantuntijat",4492]
["2145 Puunjalostuksen ja kemian prosessitekniikan erityisasiantuntijat",4754]
["2146 Kaivosteollisuuden, metallurgian ym. erityisasiantuntijat",4587]
["2149 Muut tekniikan erityisasiantuntijat",4578]
["215 Sähköteknologian erityisasiantuntijat",4708]
["2151 Sähkötekniikan erityisasiantuntijat",4585]
["2152 Elektroniikan erityisasiantuntijat",4710]
["2153 ICT-alan erityisasiantuntijat",4825]
["21531 Tietoliikenneteknologian tutkijat",5101]
["21532 Tietotekniikka-alan tutkijat",3404]
["216 Arkkitehdit, suunnittelijat ja maanmittaajat",4084]
["2161 Talonrakennuksen arkkitehdit",4083]
["2162 Maisema-arkkitehdit",".."]
["2163 Tuote- ja vaatesuunnittelijat",3447]
["2164 Yhdyskunta- ja liikennesuunnittelijat",4672]
["2165 Kartoituksen ja maanmittauksen erityisasiantuntijat",4280]
["2166 Graafiset ja multimediasuunnittelijat",3598]
["22 Terveydenhuollon erityisasiantuntijat",4792]
["221 Lääkärit",6772]
["2211 Yleislääkärit",6898]
["2212 Ylilääkärit ja erikoislääkärit",6684]
["22121 Ylilääkärit",8429]
["22122 Erikoislääkärit",6433]
["222 Hoitotyön erityisasiantuntijat",3313]
["2221 Ylihoitajat ja osastonhoitajat",3313]
["22211 Ylihoitajat",4323]
["22212 Osastonhoitajat",3287]
["225 Eläinlääkärit",4153]
["2250 Eläinlääkärit",4153]
["226 Muut terveydenhuollon erityisasiantuntijat",4991]
["2261 Hammaslääkärit",6606]
["2262 Proviisorit",4553]
["2263 Ympäristöterveyden ja työsuojelun erityisasiantuntijat",5245]
["2265 Ravitsemusalan erityisasiantuntijat",2925]
["2266 Kuulontutkijat ja puheterapeutit",".."]
["2269 Muut muualla luokittelemattomat terveydenhuollon erityisasiantuntijat",3951]
["23 Opettajat ja muut opetusalan erityisasiantuntijat",3967]
["231 Yliopisto- ja korkeakouluopettajat",4610]
["2310 Yliopistojen ja ammattikorkeakoulujen opettajat",4610]
["23101 Professorit",6639]
["23102 Lehtorit ja yliassistentit (yliopisto)",4198]
["23103 Assistentit ja tuntiopettajat (yliopisto)",3147]
["23104 Yliopettajat (AMK)",5541]
["23105 Lehtorit (AMK)",4569]
["23106 Tuntiopettajat ym. (AMK)",4059]
["232 Ammatillisen koulutuksen opettajat",3738]
["2320 Ammatillisen koulutuksen opettajat",3738]
["233 Lukion ja peruskoulun yläluokkien opettajat",3891]
["2330 Lukion ja peruskoulun yläluokkien opettajat",3891]
["23304 Muut peruskoulun yläluokkien ja lukion opettajat",3891]
["234 Peruskoulun alaluokkien opettajat ja lastentarhanopettajat",2570]
["2341 Peruskoulun alaluokkien opettajat",3304]
["23411 Luokanopettajat",3228]
["23412 Aineenopettajat (peruskoulun alaluokat)",3426]
["2342 Lastentarhanopettajat",2363]
["235 Muut opetusalan erityisasiantuntijat",3317]
["2351 Opetusmenetelmien erityisasiantuntijat",3610]
["2352 Erityisopettajat",4049]
["2354 Muut musiikin opettajat",2898]
["2355 Muut taideaineiden opettajat",3139]
["2356 Muut tietotekniikan opettajat ja kouluttajat",".."]
["2359 Opinto-ohjaajat ja muut opetuksen erityisasiantuntijat",3099]
["23591 Opinto-ohjaajat",2605]
["23592 Muut opetuksen erityisasiantuntijat",3427]
["24 Liike-elämän ja hallinnon erityisasiantuntijat",4867]
["241 Rahoitusalan erityisasiantuntijat",4876]
["2411 Laskentatoimen erityisasiantuntijat ja tilintarkastajat",4703]
["2412 Rahoitus- ja sijoitusneuvojat",5262]
["2413 Rahoitusanalyytikot",5135]
["242 Hallinnon erityisasiantuntijat",4760]
["2421 Johtamisen ja organisaatioiden erityisasiantuntijat",5262]
["2422 Hallinnon ja elinkeinojen kehittämisen erityisasiantuntijat",4674]
["2423 Henkilöstöhallinnon erityisasiantuntijat ja urasuunnittelijat",4502]
["2424 Henkilöstön kehittämisen erityisasiantuntijat ja kouluttajat",3745]
["243 Myynnin, markkinoinnin ja tiedotuksen erityisasiantuntijat",4930]
["2431 Mainonnan ja markkinoinnin erityisasiantuntijat",4799]
["2432 Tiedottajat",3992]
["2433 Myynti-insinöörit ja lääke-esittelijät (pl. tieto- ja viestintätekniikka)",5080]
["2434 Tieto- ja viestintätekniikan myynnin erityisasiantuntijat",6024]
["25 Tieto- ja viestintäteknologian erityisasiantuntijat",4661]
["251 Systeemityön erityisasiantuntijat",4651]
["2511 Sovellusarkkitehdit",4861]
["2512 Sovellussuunnittelijat",4610]
["2513 Web- ja multimediakehittäjät",3261]
["2514 Sovellusohjelmoijat",3256]
["2519 Muut ohjelmisto- ja sovelluskehittäjät",4668]
["252 Tietokantojen,- verkkojen ja järjestelmäohjelmistojen erityisasiantuntijat",4702]
["2521 Tietokantasuunnittelijat ja -vastaavat",3317]
["2522 Tietojärjestelmien ylläpitäjät",4185]
["2523 Tietoverkkojen erityisasiantuntijat",4927]
["2529 Muut tietokanta- ja tietoverkkojen erityisasiantuntijat",4689]
["26 Lainopilliset, sosiaalialan ja kulttuurialan erityisasiantuntijat",3986]
["261 Lainopilliset erityisasiantuntijat",5666]
["2611 Asianajajat",5995]
["2619 Muut lainopilliset erityisasiantuntijat",5056]
["262 Kirjaston- ja arkistonhoitajat sekä museoalan erityisasiantuntijat",3457]
["2621 Arkistonhoitajat ja museoalan erityisasiantuntijat",3246]
["26211 Arkistonhoitajat",2983]
["26212 Museoalan erityisasiantuntijat",3322]
["2622 Kirjastonhoitajat, informaatikot ym.",3574]
["263 Yhteiskunta- ja sosiaalialan sekä uskonnollisen elämän erityisasiantuntijat",3548]
["2631 Ekonomistit",4640]
["2632 Yhteiskunta- ja kulttuuritutkijat",3486]
["2633 Historioitsijat, politiikan tutkijat ja filosofit",3159]
["2634 Psykologit",3854]
["2635 Sosiaalityön erityisasiantuntijat",3050]
["26351 Sosiaalityöntekijät ym.",3153]
["26352 Sosiaalialan suunnittelijat ym.",2807]
["2636 Papit ym. uskonnollisen elämän erityisasiantuntijat",3739]
["264 Toimittajat, kirjailijat ja kielitieteilijät",3801]
["2641 Kirjailijat ym.",3693]
["2642 Toimittajat",3874]
["26421 Toimituspäälliköt ja -sihteerit, ohjelmapäälliköt",4084]
["26422 Lehtien yms. toimittajat",3777]
["2643 Kääntäjät, tulkit ja muut kielitieteilijät",3185]
["265 Taiteilijat",3285]
["2651 Kuvataiteilijat",3111]
["2652 Muusikot, laulajat ja säveltäjät",3046]
["2653 Tanssitaiteilijat ja koreografit",2567]
["2654 Ohjaajat ja tuottajat",3911]
["2655 Näyttelijät",3186]
["2659 Muut taiteilijat",".."]
["3 Asiantuntijat",3590]
["31 Luonnontieteiden ja tekniikan asiantuntijat",3597]
["311 Fysiikan, kemian ja teknisten alojen asiantuntijat",3611]
["3111 Luonnontieteen tekniset asiantuntijat",2916]
["3112 Rakentamisen asiantuntijat",3490]
["31121 Talonrakentamisen asiantuntijat",3486]
["31122 Maa- ja vesirakentamisen asiantuntijat",3467]
["31123 Kartoituksen ja maanmittauksen asiantuntijat",3372]
["3113 Sähkötekniikan asiantuntijat",3735]
["3114 Elektroniikan asiantuntijat",3649]
["3115 Konetekniikan asiantuntijat",3660]
["3116 Kemian prosessitekniikan asiantuntijat",3696]
["3117 Kaivosteollisuuden ja metallurgian asiantuntijat",3638]
["3118 Tekniset piirtäjät",3876]
["3119 Muut fysiikan, kemian ja teknisten alojen asiantuntijat",3536]
["312 Työnjohtajat kaivos-, teollisuus- ja rakennustoiminnassa",3628]
["3121 Kaivostyönjohtajat",3389]
["3122 Teollisuuden työnjohtajat",3606]
["3123 Rakennusalan työnjohtajat",3714]
["313 Prosessinvalvonnan asiantuntijat",3116]
["3131 Voimalaitosten prosessinhoitajat",3112]
["3132 Jätteenpoltto- ja vedenpuhdistuslaitosten prosessinhoitajat",3140]
["3134 Öljy- ja maakaasujalostamon prosessinhoitajat",2938]
["314 Biotieteiden asiantuntijat",2975]
["3141 Laborantit ym.",2968]
["3142 Maa- ja kalatalousteknikot",2902]
["3143 Metsätalousteknikot",3038]
["315 Laiva-, lento- ja satamaliikenteen päälliköt ja ohjaajat",5165]
["3151 Laivojen konepäälliköt ja -mestarit",4396]
["3152 Vesiliikenteen perämiehet ja päälliköt",5103]
["31521 Isojen alusten päälliköt ja perämiehet",4389]
["31522 Pienten alusten päälliköt",".."]
["31523 Satamaliikenteen ohjaajat ja satamakapteenit",5773]
["3154 Lennonjohtajat",5895]
["32 Terveydenhuollon asiantuntijat",2962]
["321 Terveydenhuollon tekniset asiantuntijat",3000]
["3211 Lääketieteellisen kuvantamis- ja laitetekniikan asiantuntijat",3009]
["3212 Bioanalyytikot (terveydenhuolto)",2944]
["3213 Farmaseutit",3032]
["3214 Hammas- ja apuvälineteknikot",2925]
["32141 Hammasteknikot",2925]
["322 Sairaanhoitajat, kätilöt ym.",2940]
["3221 Sairaanhoitajat ym.",2940]
["32211 Sairaanhoitajat",2900]
["32212 Terveydenhoitajat",3051]
["324 Seminologit ym.",2404]
["3240 Seminologit ym.",2404]
["325 Muut terveydenhuollon asiantuntijat",2993]
["3251 Suuhygienistit",2874]
["3254 Optikot",3326]
["3255 Fysioterapeutit ym.",2691]
["3257 Terveys- ja työsuojelutarkastajat",3890]
["3258 Sairaankuljetuksen ensihoitajat",3051]
["3259 Muut muualla luokittelemattomat terveydenhuollon asiantuntijat",3241]
["32591 Toimintaterapeutit",2745]
["33 Liike-elämän ja hallinnon asiantuntijat",3793]
["331 Rahoitus-, vakuutus-  ja laskentatoimen asiantuntijat",3514]
["3311 Arvopaperi- ja valuuttakauppiaat",4660]
["3312 Luotto- ja laina-asiantuntijat",4746]
["3313 Kirjanpidon ja laskentatoimen asiantuntijat",3185]
["3314 Tilastointi- ja matematiikka-asiantuntijat",3147]
["3315 Arvioitsijat ja vahinkotarkastajat",4689]
["332 Myynti- ja ostoagentit",4086]
["3321 Vakuutusalan palvelumyyjät",4842]
["3322 Myyntiedustajat",4065]
["3323 Sisäänostajat",3897]
["333 Yrityspalveluiden välittäjät",3502]
["3331 Huolitsijat, tulli- ja laivanselvittäjät",3397]
["3332 Konferenssi- ja tapahtumajärjestäjät",3303]
["3333 Työnvälittäjät",".."]
["3334 Kiinteistönvälittäjät ja isännöitsijät",3604]
["33341 Kiinteistönvälittäjät",3644]
["33342 Isännöitsijät",3581]
["3339 Muut liike-elämän asiantuntijat",3456]
["334 Hallinnolliset ja erikoistuneet sihteerit",3425]
["3341 Toimistotyön esimiehet",3730]
["3342 Asianajosihteerit",3302]
["3343 Johdon sihteerit ja osastosihteerit",3275]
["3344 Toimistosihteerit (terveydenhuolto)",2402]
["335 Julkishallinnon valmistelu- ja valvontavirkamiehet",3270]
["3353 Sosiaaliturvaetuuksien käsittelijät",3291]
["3354 Lupavirkamiehet",".."]
["3359 Muut julkishallinnon valmistelu- ja valvontavirkamiehet",".."]
["34 Lainopilliset avustajat sekä sosiaali- ja kulttuurialan asiantuntijat",3025]
["341 Lainopilliset asiantuntijat sekä sosiaalialan ja seurakunnan työntekijät",2992]
["3411 Lainopilliset avustajat ja järjestöalan asiantuntijat",3950]
["34111 Oikeudenkäyntiasiamiehet ja ulosottomiehet",3738]
["34112 Asiamiehet, toimitsijat ym. järjestöalan asiantuntijat",3965]
["34113 Kuluttajaneuvojat ym.",".."]
["3412 Sosiaalialan ohjaajat ja neuvojat ym.",2779]
["34121 Sosiaalialan ohjaajat",2823]
["34122 Nuorisotyön ohjaajat (ei srk.)",2496]
["34123 Työn- ja askarteluohjaajat",2517]
["3413 Seurakuntatyöntekijät",2682]
["34131 Diakonit ja diakonissat",2680]
["34139 Muut seurakuntatyöntekijät",2684]
["342 Urheilijat, urheiluvalmentajat, liikunnanohjaajat ym.",3588]
["3421 Urheilijat",5437]
["3422 Urheiluvalmentajat ja toimitsijat",3219]
["3423 Liikunnan ja vapaa-ajan ohjaajat",2556]
["343 Taide- ja kulttuurialan asiantuntijat sekä keittiöpäälliköt",2756]
["3431 Valokuvaajat",3183]
["3432 Sisustussuunnittelijat ym.",2399]
["3433 Gallerioiden, museoiden ja kirjastojen tekniset työntekijät",2524]
["3434 Keittiöpäälliköt",2938]
["3435 Muut taide- ja kulttuurialan asiantuntijat",2765]
["34351 Kuvaussihteerit ja muut näyttämötekniset asiantuntijat",2700]
["34359 Muut taide- ja kulttuurialan tekniset asiantuntijat",2923]
["35 Informaatio- ja tietoliikenneteknologian asiantuntijat",3700]
["351 Informaatio- ja tietoliikenneteknologian teknikot sekä käyttäjätukihenkilöt",3646]
["3511 Käytön operaattorit",3770]
["3512 Käytön tukihenkilöt",3423]
["3513 Tietoverkkoteknikot",3670]
["3514 Webmasterit ja -teknikot",3719]
["352 Teleliikenne- sekä radio- ja tv-teknikot",4057]
["3521 Lähetys- ja audiovisuaaliteknikot",3478]
["3522 Televiestinnän tekniset asiantuntijat",4209]
["4 Toimisto- ja asiakaspalvelutyöntekijät",2780]
["41 Toimistotyöntekijät",2747]
["411 Toimistoavustajat",2579]
["4110 Toimistoavustajat",2579]
["412 Yleissihteerit",2729]
["4120 Yleissihteerit",2729]
["413 Tekstinkäsittelijät ja tallentajat",3373]
["4131 Tekstinkäsittelijät",3576]
["4132 Tallentajat",2867]
["42 Asiakaspalvelutyöntekijät",2673]
["421 Rahaliikenteen asiakaspalvelutyöntekijät",2814]
["4211 Pankki- ym. toimihenkilöt",2820]
["4214 Maksujenperijät",2813]
["422 Muut asiakaspalvelutyöntekijät",2475]
["4221 Matkatoimistovirkailijat",2905]
["4222 Puhelinpalveluneuvojat",2262]
["4223 Puhelinvaihteenhoitajat",2334]
["4224 Hotellin vastaanottovirkailijat",2392]
["4225 Informaatiopisteen asiakasneuvojat",2259]
["4226 Vastaanoton ja neuvonnan hoitajat",2405]
["4227 Tutkimus- ja markkinatutkimushaastattelijat",2421]
["4229 Muualla luokittelemattomat asiakaspalvelutyöntekijät",2509]
["42299 Muut muualla luokittelemattomat asiakaspalvelutyöntekijät",2497]
["43 Laskennan ja varastoinnin toimistotyöntekijät",2882]
["431 Palkanlaskijat, vakuutuskäsittelijät ym.",2760]
["4311 Taloushallinnon toimistotyöntekijät",2688]
["4312 Tilasto-, rahoitus- ja vakuutusalan toimistotyöntekijät",2879]
["4313 Palkanlaskijat",2649]
["432 Kuljetuksen ja varastoinnin toimistotyöntekijät",3193]
["4321 Varastonhoitajat ym.",3098]
["4322 Tuotannon valmistelijat",".."]
["4323 Kuljetuksen toimistotyöntekijät",3251]
["43231 Raideliikenteen ohjaajat, ajojärjestelijät ym.",4468]
["43239 Muut kuljetuksen ja huolinnan toimistotyöntekijät",3206]
["44 Muut toimisto- ja asiakaspalvelutyöntekijät",2790]
["441 Muut toimisto- ja asiakaspalvelutyöntekijät",2790]
["4411 Kirjastotyöntekijät",2546]
["4412 Postinkantajat ja -lajittelijat",2507]
["44122 Toimistovahtimestarit",2517]
["4413 Koodaajat, oikolukijat ym.",3474]
["4415 Arkistotyöntekijät",2454]
["4416 Henkilöstöhallinnon avustavat toimistotyöntekijät",2829]
["4419 Muut muualla luokittelemattomat toimisto- ja asiakaspalvelutyöntekijät",2813]
["5 Palvelu- ja myyntityöntekijät",2514]
["51 Palvelutyöntekijät",2432]
["5113 Matkaoppaat",".."]
["512 Ravintola- ja suurtaloustyöntekijät",2504]
["5120 Ravintola- ja suurtaloustyöntekijät",2504]
["51201 Kokit, keittäjät ja kylmäköt",2223]
["51202 Ravintolaesimiehet ja vuoropäälliköt",2738]
["513 Tarjoilutyöntekijät",2258]
["5131 Tarjoilijat",2247]
["5132 Baarimestarit",2691]
["514 Kampaajat, parturit, kosmetologit ym.",2271]
["5141 Kampaajat ja parturit",2242]
["5142 Kosmetologit ym.",".."]
["515 Kiinteistöhuollon ja siivoustyön esimiehet",2414]
["5151 Siivoustyön esimiehet toimistoissa, hotelleissa ja muissa laitoksissa",3023]
["5153 Kiinteistöhuollon työntekijät",2317]
["516 Muut henkilökohtaisen palvelun työntekijät",2256]
["5163 Hautauspalvelutyöntekijät",2780]
["51632 Muut hautaustyöntekijät",2569]
["5164 Eläintenhoitajat ja lemmikkieläinten trimmaajat",2066]
["5165 Ajo-opettajat",3063]
["5169 Muualla luokittelemattomat henkilökohtaisen palvelun työntekijät",2681]
["52 Myyjät, kauppiaat ym.",2610]
["521 Katu- ja torikauppiaat",".."]
["5211 Kioski- ja torimyyjät",".."]
["522 Myyjät ja kauppiaat",2660]
["5221 Kauppiaat (pienyrittäjät)",".."]
["5222 Myymäläesimiehet",3304]
["5223 Myyjät",2521]
["523 Kassanhoitajat ja lipunmyyjät",2165]
["5230 Kassanhoitajat ja lipunmyyjät",2165]
["524 Muut myyntityöntekijät",2470]
["5242 Tuote-esittelijät",2741]
["5243 Suoramyyjät",2823]
["5244 Puhelin- ja asiakaspalvelukeskusten myyjät",2557]
["5245 Huoltamotyöntekijät",2195]
["5246 Kahvila- ja baarimyyjät",1960]
["5249 Muut muualla luokittelemattomat myyntityöntekijät",".."]
["53 Hoivapalvelun ja terveydenhuollon työntekijät",2414]
["531 Lastenhoitajat ja koulunkäyntiavustajat",2077]
["5311 Lastenhoitotyöntekijät",2087]
["53111 Päiväkotien ja muiden laitosten lastenhoitajat ym.",2060]
["53112 Perhepäivähoitajat",".."]
["53113 Lastenkerhojen ohjaajat ym.",2165]
["5312 Koulunkäyntiavustajat",1893]
["532 Lähihoitajat, muut terveydenhuollon työntekijät ja kodinhoitajat",2474]
["5321 Lähihoitajat",2526]
["53211 Mielenterveyshoitajat",2736]
["53212 Kehitysvammaisten hoitajat",2661]
["53213 Sosiaalialan hoitajat",2501]
["53219 Muut lähihoitajat",2558]
["5322 Kodinhoitajat (kotipalvelutoiminta)",2161]
["53221 Kotityöpalvelutyöntekijät",2170]
["53222 Henkilökohtaiset avustajat, omaishoitajat ym.",".."]
["5329 Muut terveydenhuoltoalan työntekijät",2231]
["53291 Hammashoitajat",2487]
["53292 Välinehuoltajat",2221]
["53293 Apteekkien lääketyöntekijät",2063]
["53294 Hierojat ja kuntohoitajat",2485]
["54 Suojelu- ja vartiointityöntekijät",2653]
["541 Suojelu- ja vartiointityöntekijät",2653]
["5414 Vartijat",2707]
["5419 Muut suojelu- ja vartiointityöntekijät",2245]
["6 Maanviljelijät, metsätyöntekijät ym.",2214]
["61 Maanviljelijät ja eläintenkasvattajat ym.",2200]
["611 Pelto- ja puutarhaviljelijät",2194]
["6111 Pelto- ja avomaaviljelijät",".."]
["6113 Puutarhurit, kasvihuoneviljelijät ja -työntekijät",2179]
["61131 Puutarhurit ja kasvihuoneviljelijät",".."]
["61132 Puutarha- ja kasvihuonetyönjohtajat ja - työntekijät",2168]
["6114 Yhdistetyn maan- ja vihannesviljelyn tai puutarhanhoidon ym. harjoittajat",".."]
["612 Eläintenkasvattajat",".."]
["6121 Liha- ja lypsykarjan kasvattajat sekä muiden kotieläinten kasvattajat",".."]
["61212 Karjanhoitajat ym.",".."]
["62 Metsä- ja kalatalouden työntekijät",".."]
["621 Metsurit ja metsätyöntekijät",".."]
["6210 Metsurit ja metsätyöntekijät",".."]
["7 Rakennus-, korjaus- ja valmistustyöntekijät",2958]
["71 Rakennustyöntekijät ym. (pl. sähköasentajat)",3149]
["711 Rakennustyöntekijät ym.",3089]
["7111 Talonrakentajat",2805]
["7115 Kirvesmiehet ja rakennuspuusepät",2990]
["7119 Muut rakennustyöntekijät",2995]
["712 Rakennusten viimeistelytyöntekijät",3309]
["7122 Lattianpäällystystyöntekijät",".."]
["7126 Putkiasentajat",2891]
["7127 Ilmastointi- ja jäähdytyslaiteasentajat",2600]
["713 Maalarit ja rakennuspuhdistajat",".."]
["7131 Rakennusmaalarit ym.",".."]
["7132 Ruiskumaalaajat ja -lakkaajat",".."]
["72 Konepaja- ja valimotyöntekijät sekä asentajat ja korjaajat",2931]
["721 Valimotyöntekijät, hitsaajat, levysepät ym.",3027]
["7212 Hitsaajat ja kaasuleikkaajat",".."]
["7213 Ohutlevysepät",".."]
["722 Sepät, työkaluntekijät ja koneenasettajat",2778]
["7222 Työkaluntekijät ja lukkosepät",".."]
["7223 Koneenasettajat ja koneistajat",2790]
["723 Koneasentajat ja -korjaajat",2955]
["7231 Moottoriajoneuvojen asentajat ja korjaajat",2887]
["7233 Maatalous- ja teollisuuskoneasentajat ja -korjaajat",3020]
["73 Käsityötuotteiden valmistajat, hienomekaanikot sekä painoalan työntekijät",2693]
["731 Käsityötuotteiden valmistajat ja hienomekaanikot",2666]
["7311 Kellosepät ja muut hienomekaanisten instrumenttien tekijät ja korjaajat",2572]
["7313 Koru-, kulta- ja hopeasepät",".."]
["732 Painoalan työntekijät",".."]
["7322 Painajat",".."]
["7323 Jälkikäsittelijät ja sitomotyöntekijät",".."]
["74 Sähkö- ja elektroniikka-alan työntekijät",3068]
["741 Sähkölaitteiden asentajat ja korjaajat",3179]
["7411 Rakennussähköasentajat",3196]
["7412 Muut sähköasentajat",3181]
["7413 Linja-asentajat ja -korjaajat",".."]
["742 Elektroniikka- ja tietoliikenneasentajat ja -korjaajat",2986]
["7421 Elektroniikka- ja automaatiolaitteiden asentajat ja korjaajat",2783]
["74211 Elektroniikka-asentajat ja -korjaajat",2733]
["74212 Automaatioasentajat ja -korjaajat",".."]
["7422 Tieto- ja viestintäteknologian asentajat ja korjaajat",3045]
["75 Elintarvike-, puutyö- ja vaatetus- ja jalkinealan valmistustyöntekijät ym.",2766]
["751 Lihanleikkaajat, leipurit, meijeristit ym.",2531]
["7511 Lihanleikkaajat, kalankäsittelijät ym.",2758]
["7512 Leipurit ja kondiittorit",2490]
["7513 Meijeristit, juustomestarit ym.",".."]
["7514 Hedelmä- ja vihannestuotteiden valmistajat",".."]
["752 Puutavaran käsittelijät, puusepät ym.",2709]
["7521 Raakapuun käsittelijät",".."]
["7522 Huonekalupuusepät ym.",2475]
["7523 Konepuusepät",2868]
["753 Vaatetusalan työntekijät ym.",2272]
["7531 Vaatturit, pukuompelijat, turkkurit ja hatuntekijät",2329]
["7533 Koru- ja muut tekstiiliompelijat",".."]
["754 Muut pääluokkaan 7 luokiteltavat työntekijät",2901]
["7543 Luokittelijat ja laaduntarkkailijat (pl. ruoat ja juomat)",2899]
["8 Prosessi- ja kuljetustyöntekijät",2846]
["81 Prosessityöntekijät",2677]
["811 Kaivos- ja louhintatyön koneenkäyttäjät",3124]
["8111 Kaivos- ja louhostyöntekijät",".."]
["8113 Iskuporaajat ja syväkairaajat",".."]
["8114 Betonituote- ym. teollisuuden prosessityöntekijät",2978]
["812 Metalliteollisuuden prosessityöntekijät ja viimeistelijät",".."]
["813 Kemianteollisuuden ja valokuvatuotteiden valmistuksen prosessityöntekijät",2782]
["8131 Kemianteollisuuden prosessityöntekijät ym.",2816]
["8132 Valokuvatuotteiden valmistuksen prosessityöntekijät",2429]
["814 Kumi-, muovi- ja paperituotteiden valmistuksen prosessityöntekijät",2842]
["8141 Kumituoteteollisuuden prosessityöntekijät",2936]
["8142 Muovituoteteollisuuden prosessityöntekijät",2785]
["815 Tekstiili-, turkis- ja nahkatuoteteollisuuden prosessityöntekijät",2042]
["8153 Teollisuusompelijat",2625]
["8156 Jalkine- ja laukkuteollisuuden prosessityöntekijät",".."]
["8157 Pesulatyöntekijät",1953]
["816 Elintarviketeollisuuden prosessityöntekijät",2670]
["8160 Elintarviketeollisuuden prosessityöntekijät",2670]
["817 Sahatavaran sekä paperin ja kartongin valmistuksen prosessityöntekijät",3173]
["8171 Paperimassan sekä paperin ja kartongin valmistuksen prosessityöntekijät",3173]
["818 Muut prosessityöntekijät",2888]
["8182 Höyrykoneiden ja lämmityskattiloiden hoitajat, lämmittäjät ym.",2815]
["81821 Voima- ja jätteenkäsittelylaitosten laitosmiehet",2815]
["8183 Pakkaus-, pullotus- ja etiköintikoneiden hoitajat",2426]
["8189 Muut muualla luokittelemattomat prosessityöntekijät",2929]
["82 Teollisuustuotteiden kokoonpanijat",3124]
["821 Teollisuustuotteiden kokoonpanijat",3124]
["8211 Konepaja- ja metallituotteiden kokoonpanijat",3391]
["8212 Sähkö- ja elektroniikkalaitteiden kokoonpanijat",2809]
["8219 Muut teollisuustuotteiden kokoonpanijat",2723]
["83 Kuljetustyöntekijät",3050]
["832 Henkilö- ja pakettiauton- sekä moottoripyöränkuljettajat",2539]
["8322 Henkilö-, taksi- ja pakettiautonkuljettajat",2538]
["833 Raskaiden moottoriajoneuvojen kuljettajat",2725]
["8331 Linja-auton- ja raitiovaununkuljettajat",2584]
["8332 Kuorma-auton ja erikoisajoneuvojen kuljettajat",2785]
["834 Työkoneiden kuljettajat",3021]
["8341 Maa- ja metsätaloustyökoneiden kuljettajat",".."]
["8342 Maansiirtokoneiden ym. kuljettajat",".."]
["8343 Nosturinkuljettajat",".."]
["835 Kansimiehistö ym. vesiliikenteen työntekijät",3324]
["8350 Kansimiehistö ym. vesiliikenteen työntekijät",3324]
["9 Muut työntekijät",2305]
["91 Siivoojat, kotiapulaiset ja muut puhdistustyöntekijät",2018]
["911 Koti-, hotelli- ja toimistosiivoojat ym.",2018]
["9112 Toimisto- ja laitossiivoojat ym.",2018]
["91121 Toimistosiivoojat ym.",1958]
["91122 Hotellisiivoojat",2025]
["91123 Sairaala- ja laitosapulaiset",2131]
["91124 Päiväkotiapulaiset",1760]
["91129 Muut muualla luokittelemattomat siivoojat",2171]
["92 Maa-, metsä- ja kalatalouden avustavat työntekijät",1831]
["921 Maa-, metsä- ja kalatalouden avustavat työntekijät",1831]
["9214 Avustavat puutarhatyöntekijät",1788]
["93 Teollisuuden ja rakentamisen avustavat työntekijät",2452]
["931 Avustavat kaivos- ja rakennustyöntekijät",2933]
["9312 Maa- ja vesirakentamisen avustavat työntekijät",3053]
["9313 Rakennusalan avustavat työntekijät",2649]
["932 Valmistusalan avustavat työntekijät",2330]
["9321 Käsinpakkaajat",".."]
["9329 Muut valmistusalan avustavat työntekijät",2222]
["933 Rahdinkäsittelijät ja varastotyöntekijät ym.",2390]
["9333 Rahdinkäsittelijät, varastotyöntekijät ym.",2391]
["9334 Hyllyjen täyttäjät",2189]
["94 Avustavat keittiö- ja ruokatyöntekijät",2026]
["941 Avustavat keittiö- ja ruokatyöntekijät",2026]
["9412 Avustavat keittiötyöntekijät",2026]
["96 Katujen puhtaanapidon ja jätehuollon työntekijät ym.",3172]
["961 Jätehuoltotyöntekijät",2350]
["9611 Jätteiden kerääjät",2421]
["9612 Jätteiden lajittelijat",".."]
["962 Sanomalehtien jakajat, lähetit ym.",3374]
["9621 Sanomalehtien jakajat, lähetit ja kantajat",".."]
["9622 Satunnaistöiden tekijät",".."]
["9629 Muut muualla luokittelemattomat työntekijät",3401]
["X Tuntematon",3228]
["x x",".."]
[]
[".. Tieto on liian epävarma esitettäväksi \n - Ei yhtään havaintoa \n <A HREF=http://tilastokeskus.fi/til/yskp/meta.html/ >Tilaston kuvaus</A>\n <A HREF=http://tilastokeskus.fi/til/yskp/laa.html/ >Laatuselosteet</A>\n<A HREF=http://tilastokeskus.fi/til/yskp/kas.html/ >Käsitteet ja määritelmät</A>"]
["Ammattiluokitus 2010:"]
["Tilastokeskuksen Ammattiluokitus 2010 on vuonna 2010 käyttöönotettu EU:n standardiluokitukseen ISCO-08:aan perustuva kansallinen versio."]
[]
["Lähde: Tilastokeskus, Yksityisen sektorin kuukausipalkat"]
["Suomen virallinen tilasto (SVT): Yksityisen sektorin kuukausipalkat [verkkojulkaisu]."]
["ISSN=1798-3894. Helsinki: Tilastokeskus [viitattu: 18.12.2017]."]
["Saantitapa: http://www.stat.fi/til/yskp/index.html"]
[]
[]
[]
[]
[]
[]
[]
[]
[]
[]
[]
[]
[]
[]
[]
[]
[]
[]
[]
[]
[]
[]
[]
[]
[]
["Tilastotietokannat:"]
[]
["Sisäinen viitekoodi:"]